{"text_format":"3","workbook":"xlsx","n_sheets":3,"sheets":["Date foaie de parcurs","Foaie de parcurs Agile","Despre"],"not_rendered":{"defined_names":5},"read":"whole","date_system":"1900"}

{"sheet":"Date foaie de parcurs","index":0,"n_rows":13,"n_cols":7,"rows_kept":13,"merged":[[12,1,12,4]]}
["Creați o Foaie de parcurs Agile introducând jaloane sau activități importante în tabelul Date foaie de parcurs în această foaie de lucru.\nTitlul acestei foi de lucru se află în celula B1. \nInformațiile despre cum să utilizați această foaie de lucru, inclusiv instrucțiunile pentru cititoarele de ecran se află în foaia de lucru Despre.\nContinuați să navigați în jos în coloana A pentru instrucțiuni suplimentare.","Date cronologie Agile"]
["Titlurile de tabel se află în celulele B2 până la E2. Utilizați filtrele din titlu pentru a sorta tabelul și a găsi anumite elemente.\nFoaia de parcurs Agile funcționează cel mai bine atunci când tabelul este sortat în ordine crescătoare după Prioritate, iar apoi după Jalon sau Activitate.\nDatele eșantion se află în tabelul Date foaie de parcurs de la celulele B3 până la E12. \nDupă parcurgerea unui jalon sau unei activități, actualizați câmpul corespunzător Rezultat  pentru a afișa rezultatele în foaia de lucru Foaie de parcurs Agile. Introduceți „Nicio modificare” pentru a evidenția jaloanele unde nu există un impact.\nContinuați cu celula A13 pentru instrucțiunile următoare.\n","Țintă","Jalon sau activitate","Prioritate","Rezultat",null,"<-- sortați tabelul după Prioritate și Jalon sau Activitate, în ordine crescătoare"]
[null,"Curent","Activitatea 1\nGenerare prototip","1 - Mare",null,null,"<-- adăugați un rezultat pentru fiecare Jalon finalizat. Introduceți „Nicio modificare” pentru a evidenția jaloanele unde nu există un impact."]
[null,"Termen scurt","Activitatea 2\nPrototip pentru demonstrație","1 - Mare"]
[null,"Curent","Activitatea 6","1 - Mare"]
[null,"Viitor","Activitatea 7\nExternalizare dezvoltarea implementării primei etape","1 - Mare"]
[null,"Finalizat","Activitatea 9\nPrima etapă aprobată","1 - Mare","Reducere cu 10%"]
[null,"Viitor","Activitatea 10","2 - Med"]
[null,"Termen scurt","Activitatea 8","2 - Med"]
[null,"Finalizat","Activitatea 3","3 - Scăzută","Nicio modificare"]
[null,"Viitor","Activitatea 4","3 - Scăzută"]
[null,"Curent","Activitatea 5","3 - Scăzută"]
["Adăugați elemente noi inserând rânduri noi în tabelul de mai sus peste această linie.\nAceasta este ultima instrucțiune din această foaie de lucru.","Adăugați elemente noi inserând rânduri noi peste această linie"]

{"sheet":"Foaie de parcurs Agile","index":1,"n_rows":100,"n_cols":8,"rows_kept":100}
["În această foaie de lucru există o Foaie de parcurs Agile în care sunt afișate jaloane și activități din foaia de lucru Date foaie de parcurs. \nTitlul se află în celula B1. \nRezultatele care au expresia „Nicio modificare” sunt evidențiate cu portocaliu deschis, rgb (255, 230, 210).\nJaloanele sau activitățile finalizate sunt evidențiate cu verde deschis rgb(237,251,219).","Foaie de parcurs Agile"]
["Titlurile diagramei se află în celulele B2, D2, F2 și H2. Acestea sunt următoarele: Finalizat, Curent, Termen scurt și Viitor. Modificați aceste titluri pentru a schimba valorile de selecție Țintă în tabelul Date foaie de parcurs din foaia de lucru Date foaie de parcurs.\nCelulele B3 până la H20 conțin Jaloane și activități pentru titlurile din acest rând. \nJaloanele și activitățile sunt create în foaia de lucru Date foaie de parcurs.\nNU modificați și NU ștergeți intrările din această foaie de lucru. Actualizați tabelul Date foaie de parcurs din foaia de lucru Date foaie de parcurs pentru a actualiza conținutul din această foaie de lucru.\nAceasta este ultima instrucțiune din această foaie de lucru.","Finalizat",null,"Curent",null,"Termen scurt",null,"Viitor"]
[null,{"$f":"IFERROR(INDEX(Activitate,SMALL(IF(Țintă=$B$2,ROW(Activitate)-MIN(ROW(Activitate))+1),ROWS($B$3:B3)))&\" \"&CHAR(10)&(INDEX(Rezultat,SMALL(IF(Țintă=$B$2,ROW(Rezultat)-MIN(ROW(Rezultat))+1),ROWS($B$3:B3))))&CHAR(10),\"\")","v":"Activitatea 9\nPrima etapă aprobată \nReducere cu 10%\n"},null,{"$f":"IFERROR(INDEX(Activitate,SMALL(IF(Țintă=$D$2,ROW(Activitate)-MIN(ROW(Activitate))+1),ROWS($B$3:B3)))&CHAR(10),\"\")","v":"Activitatea 1\nGenerare prototip\n"},null,{"$f":"IFERROR(INDEX(Activitate,SMALL(IF(Țintă=$F$2,ROW(Activitate)-MIN(ROW(Activitate))+1),ROWS($B$3:B3)))&CHAR(10),\"\")","v":"Activitatea 2\nPrototip pentru demonstrație\n"},null,{"$f":"IFERROR(INDEX(Activitate,SMALL(IF(Țintă=$H$2,ROW(Activitate)-MIN(ROW(Activitate))+1),ROWS($B$3:B3)))&CHAR(10),\"\")","v":"Activitatea 7\nExternalizare dezvoltarea implementării primei etape\n"}]
[null,{"$f":"IFERROR(INDEX(Activitate,SMALL(IF(Țintă=$B$2,ROW(Activitate)-MIN(ROW(Activitate))+1),ROWS($B$3:B4)))&\" \"&CHAR(10)&(INDEX(Rezultat,SMALL(IF(Țintă=$B$2,ROW(Rezultat)-MIN(ROW(Rezultat))+1),ROWS($B$3:B4))))&CHAR(10),\"\")","v":"Activitatea 3 \nNicio modificare\n"},null,{"$f":"IFERROR(INDEX(Activitate,SMALL(IF(Țintă=$D$2,ROW(Activitate)-MIN(ROW(Activitate))+1),ROWS($B$3:B4)))&CHAR(10),\"\")","v":"Activitatea 6\n"},null,{"$f":"IFERROR(INDEX(Activitate,SMALL(IF(Țintă=$F$2,ROW(Activitate)-MIN(ROW(Activitate))+1),ROWS($B$3:B4)))&CHAR(10),\"\")","v":"Activitatea 8\n"},null,{"$f":"IFERROR(INDEX(Activitate,SMALL(IF(Țintă=$H$2,ROW(Activitate)-MIN(ROW(Activitate))+1),ROWS($B$3:B4)))&CHAR(10),\"\")","v":"Activitatea 10\n"}]
[null,{"$f":"IFERROR(INDEX(Activitate,SMALL(IF(Țintă=$B$2,ROW(Activitate)-MIN(ROW(Activitate))+1),ROWS($B$3:B5)))&\" \"&CHAR(10)&(INDEX(Rezultat,SMALL(IF(Țintă=$B$2,ROW(Rezultat)-MIN(ROW(Rezultat))+1),ROWS($B$3:B5))))&CHAR(10),\"\")","v":""},null,{"$f":"IFERROR(INDEX(Activitate,SMALL(IF(Țintă=$D$2,ROW(Activitate)-MIN(ROW(Activitate))+1),ROWS($B$3:B5)))&CHAR(10),\"\")","v":"Activitatea 5\n"},null,{"$f":"IFERROR(INDEX(Activitate,SMALL(IF(Țintă=$F$2,ROW(Activitate)-MIN(ROW(Activitate))+1),ROWS($B$3:B5)))&CHAR(10),\"\")","v":""},null,{"$f":"IFERROR(INDEX(Activitate,SMALL(IF(Țintă=$H$2,ROW(Activitate)-MIN(ROW(Activitate))+1),ROWS($B$3:B5)))&CHAR(10),\"\")","v":"Activitatea 4\n"}]
[null,{"$f":"IFERROR(INDEX(Activitate,SMALL(IF(Țintă=$B$2,ROW(Activitate)-MIN(ROW(Activitate))+1),ROWS($B$3:B6)))&\" \"&CHAR(10)&(INDEX(Rezultat,SMALL(IF(Țintă=$B$2,ROW(Rezultat)-MIN(ROW(Rezultat))+1),ROWS($B$3:B6))))&CHAR(10),\"\")","v":""},null,{"$f":"IFERROR(INDEX(Activitate,SMALL(IF(Țintă=$D$2,ROW(Activitate)-MIN(ROW(Activitate))+1),ROWS($B$3:B6)))&CHAR(10),\"\")","v":""},null,{"$f":"IFERROR(INDEX(Activitate,SMALL(IF(Țintă=$F$2,ROW(Activitate)-MIN(ROW(Activitate))+1),ROWS($B$3:B6)))&CHAR(10),\"\")","v":""},null,{"$f":"IFERROR(INDEX(Activitate,SMALL(IF(Țintă=$H$2,ROW(Activitate)-MIN(ROW(Activitate))+1),ROWS($B$3:B6)))&CHAR(10),\"\")","v":""}]
[null,{"$f":"IFERROR(INDEX(Activitate,SMALL(IF(Țintă=$B$2,ROW(Activitate)-MIN(ROW(Activitate))+1),ROWS($B$3:B7)))&\" \"&CHAR(10)&(INDEX(Rezultat,SMALL(IF(Țintă=$B$2,ROW(Rezultat)-MIN(ROW(Rezultat))+1),ROWS($B$3:B7))))&CHAR(10),\"\")","v":""},null,{"$f":"IFERROR(INDEX(Activitate,SMALL(IF(Țintă=$D$2,ROW(Activitate)-MIN(ROW(Activitate))+1),ROWS($B$3:B7)))&CHAR(10),\"\")","v":""},null,{"$f":"IFERROR(INDEX(Activitate,SMALL(IF(Țintă=$F$2,ROW(Activitate)-MIN(ROW(Activitate))+1),ROWS($B$3:B7)))&CHAR(10),\"\")","v":""},null,{"$f":"IFERROR(INDEX(Activitate,SMALL(IF(Țintă=$H$2,ROW(Activitate)-MIN(ROW(Activitate))+1),ROWS($B$3:B7)))&CHAR(10),\"\")","v":""}]
[null,{"$f":"IFERROR(INDEX(Activitate,SMALL(IF(Țintă=$B$2,ROW(Activitate)-MIN(ROW(Activitate))+1),ROWS($B$3:B8)))&\" \"&CHAR(10)&(INDEX(Rezultat,SMALL(IF(Țintă=$B$2,ROW(Rezultat)-MIN(ROW(Rezultat))+1),ROWS($B$3:B8))))&CHAR(10),\"\")","v":""},null,{"$f":"IFERROR(INDEX(Activitate,SMALL(IF(Țintă=$D$2,ROW(Activitate)-MIN(ROW(Activitate))+1),ROWS($B$3:B8)))&CHAR(10),\"\")","v":""},null,{"$f":"IFERROR(INDEX(Activitate,SMALL(IF(Țintă=$F$2,ROW(Activitate)-MIN(ROW(Activitate))+1),ROWS($B$3:B8)))&CHAR(10),\"\")","v":""},null,{"$f":"IFERROR(INDEX(Activitate,SMALL(IF(Țintă=$H$2,ROW(Activitate)-MIN(ROW(Activitate))+1),ROWS($B$3:B8)))&CHAR(10),\"\")","v":""}]
[null,{"$f":"IFERROR(INDEX(Activitate,SMALL(IF(Țintă=$B$2,ROW(Activitate)-MIN(ROW(Activitate))+1),ROWS($B$3:B9)))&\" \"&CHAR(10)&(INDEX(Rezultat,SMALL(IF(Țintă=$B$2,ROW(Rezultat)-MIN(ROW(Rezultat))+1),ROWS($B$3:B9))))&CHAR(10),\"\")","v":""},null,{"$f":"IFERROR(INDEX(Activitate,SMALL(IF(Țintă=$D$2,ROW(Activitate)-MIN(ROW(Activitate))+1),ROWS($B$3:B9)))&CHAR(10),\"\")","v":""},null,{"$f":"IFERROR(INDEX(Activitate,SMALL(IF(Țintă=$F$2,ROW(Activitate)-MIN(ROW(Activitate))+1),ROWS($B$3:B9)))&CHAR(10),\"\")","v":""},null,{"$f":"IFERROR(INDEX(Activitate,SMALL(IF(Țintă=$H$2,ROW(Activitate)-MIN(ROW(Activitate))+1),ROWS($B$3:B9)))&CHAR(10),\"\")","v":""}]
[null,{"$f":"IFERROR(INDEX(Activitate,SMALL(IF(Țintă=$B$2,ROW(Activitate)-MIN(ROW(Activitate))+1),ROWS($B$3:B10)))&\" \"&CHAR(10)&(INDEX(Rezultat,SMALL(IF(Țintă=$B$2,ROW(Rezultat)-MIN(ROW(Rezultat))+1),ROWS($B$3:B10))))&CHAR(10),\"\")","v":""},null,{"$f":"IFERROR(INDEX(Activitate,SMALL(IF(Țintă=$D$2,ROW(Activitate)-MIN(ROW(Activitate))+1),ROWS($B$3:B10)))&CHAR(10),\"\")","v":""},null,{"$f":"IFERROR(INDEX(Activitate,SMALL(IF(Țintă=$F$2,ROW(Activitate)-MIN(ROW(Activitate))+1),ROWS($B$3:B10)))&CHAR(10),\"\")","v":""},null,{"$f":"IFERROR(INDEX(Activitate,SMALL(IF(Țintă=$H$2,ROW(Activitate)-MIN(ROW(Activitate))+1),ROWS($B$3:B10)))&CHAR(10),\"\")","v":""}]
[null,{"$f":"IFERROR(INDEX(Activitate,SMALL(IF(Țintă=$B$2,ROW(Activitate)-MIN(ROW(Activitate))+1),ROWS($B$3:B11)))&\" \"&CHAR(10)&(INDEX(Rezultat,SMALL(IF(Țintă=$B$2,ROW(Rezultat)-MIN(ROW(Rezultat))+1),ROWS($B$3:B11))))&CHAR(10),\"\")","v":""},null,{"$f":"IFERROR(INDEX(Activitate,SMALL(IF(Țintă=$D$2,ROW(Activitate)-MIN(ROW(Activitate))+1),ROWS($B$3:B11)))&CHAR(10),\"\")","v":""},null,{"$f":"IFERROR(INDEX(Activitate,SMALL(IF(Țintă=$F$2,ROW(Activitate)-MIN(ROW(Activitate))+1),ROWS($B$3:B11)))&CHAR(10),\"\")","v":""},null,{"$f":"IFERROR(INDEX(Activitate,SMALL(IF(Țintă=$H$2,ROW(Activitate)-MIN(ROW(Activitate))+1),ROWS($B$3:B11)))&CHAR(10),\"\")","v":""}]
[null,{"$f":"IFERROR(INDEX(Activitate,SMALL(IF(Țintă=$B$2,ROW(Activitate)-MIN(ROW(Activitate))+1),ROWS($B$3:B12)))&\" \"&CHAR(10)&(INDEX(Rezultat,SMALL(IF(Țintă=$B$2,ROW(Rezultat)-MIN(ROW(Rezultat))+1),ROWS($B$3:B12))))&CHAR(10),\"\")","v":""},null,{"$f":"IFERROR(INDEX(Activitate,SMALL(IF(Țintă=$D$2,ROW(Activitate)-MIN(ROW(Activitate))+1),ROWS($B$3:B12)))&CHAR(10),\"\")","v":""},null,{"$f":"IFERROR(INDEX(Activitate,SMALL(IF(Țintă=$F$2,ROW(Activitate)-MIN(ROW(Activitate))+1),ROWS($B$3:B12)))&CHAR(10),\"\")","v":""},null,{"$f":"IFERROR(INDEX(Activitate,SMALL(IF(Țintă=$H$2,ROW(Activitate)-MIN(ROW(Activitate))+1),ROWS($B$3:B12)))&CHAR(10),\"\")","v":""}]
[null,{"$f":"IFERROR(INDEX(Activitate,SMALL(IF(Țintă=$B$2,ROW(Activitate)-MIN(ROW(Activitate))+1),ROWS($B$3:B13)))&\" \"&CHAR(10)&(INDEX(Rezultat,SMALL(IF(Țintă=$B$2,ROW(Rezultat)-MIN(ROW(Rezultat))+1),ROWS($B$3:B13))))&CHAR(10),\"\")","v":""},null,{"$f":"IFERROR(INDEX(Activitate,SMALL(IF(Țintă=$D$2,ROW(Activitate)-MIN(ROW(Activitate))+1),ROWS($B$3:B13)))&CHAR(10),\"\")","v":""},null,{"$f":"IFERROR(INDEX(Activitate,SMALL(IF(Țintă=$F$2,ROW(Activitate)-MIN(ROW(Activitate))+1),ROWS($B$3:B13)))&CHAR(10),\"\")","v":""},null,{"$f":"IFERROR(INDEX(Activitate,SMALL(IF(Țintă=$H$2,ROW(Activitate)-MIN(ROW(Activitate))+1),ROWS($B$3:B13)))&CHAR(10),\"\")","v":""}]
[null,{"$f":"IFERROR(INDEX(Activitate,SMALL(IF(Țintă=$B$2,ROW(Activitate)-MIN(ROW(Activitate))+1),ROWS($B$3:B14)))&\" \"&CHAR(10)&(INDEX(Rezultat,SMALL(IF(Țintă=$B$2,ROW(Rezultat)-MIN(ROW(Rezultat))+1),ROWS($B$3:B14))))&CHAR(10),\"\")","v":""},null,{"$f":"IFERROR(INDEX(Activitate,SMALL(IF(Țintă=$D$2,ROW(Activitate)-MIN(ROW(Activitate))+1),ROWS($B$3:B14)))&CHAR(10),\"\")","v":""},null,{"$f":"IFERROR(INDEX(Activitate,SMALL(IF(Țintă=$F$2,ROW(Activitate)-MIN(ROW(Activitate))+1),ROWS($B$3:B14)))&CHAR(10),\"\")","v":""},null,{"$f":"IFERROR(INDEX(Activitate,SMALL(IF(Țintă=$H$2,ROW(Activitate)-MIN(ROW(Activitate))+1),ROWS($B$3:B14)))&CHAR(10),\"\")","v":""}]
[null,{"$f":"IFERROR(INDEX(Activitate,SMALL(IF(Țintă=$B$2,ROW(Activitate)-MIN(ROW(Activitate))+1),ROWS($B$3:B15)))&\" \"&CHAR(10)&(INDEX(Rezultat,SMALL(IF(Țintă=$B$2,ROW(Rezultat)-MIN(ROW(Rezultat))+1),ROWS($B$3:B15))))&CHAR(10),\"\")","v":""},null,{"$f":"IFERROR(INDEX(Activitate,SMALL(IF(Țintă=$D$2,ROW(Activitate)-MIN(ROW(Activitate))+1),ROWS($B$3:B15)))&CHAR(10),\"\")","v":""},null,{"$f":"IFERROR(INDEX(Activitate,SMALL(IF(Țintă=$F$2,ROW(Activitate)-MIN(ROW(Activitate))+1),ROWS($B$3:B15)))&CHAR(10),\"\")","v":""},null,{"$f":"IFERROR(INDEX(Activitate,SMALL(IF(Țintă=$H$2,ROW(Activitate)-MIN(ROW(Activitate))+1),ROWS($B$3:B15)))&CHAR(10),\"\")","v":""}]
[null,{"$f":"IFERROR(INDEX(Activitate,SMALL(IF(Țintă=$B$2,ROW(Activitate)-MIN(ROW(Activitate))+1),ROWS($B$3:B16)))&\" \"&CHAR(10)&(INDEX(Rezultat,SMALL(IF(Țintă=$B$2,ROW(Rezultat)-MIN(ROW(Rezultat))+1),ROWS($B$3:B16))))&CHAR(10),\"\")","v":""},null,{"$f":"IFERROR(INDEX(Activitate,SMALL(IF(Țintă=$D$2,ROW(Activitate)-MIN(ROW(Activitate))+1),ROWS($B$3:B16)))&CHAR(10),\"\")","v":""},null,{"$f":"IFERROR(INDEX(Activitate,SMALL(IF(Țintă=$F$2,ROW(Activitate)-MIN(ROW(Activitate))+1),ROWS($B$3:B16)))&CHAR(10),\"\")","v":""},null,{"$f":"IFERROR(INDEX(Activitate,SMALL(IF(Țintă=$H$2,ROW(Activitate)-MIN(ROW(Activitate))+1),ROWS($B$3:B16)))&CHAR(10),\"\")","v":""}]
[null,{"$f":"IFERROR(INDEX(Activitate,SMALL(IF(Țintă=$B$2,ROW(Activitate)-MIN(ROW(Activitate))+1),ROWS($B$3:B17)))&\" \"&CHAR(10)&(INDEX(Rezultat,SMALL(IF(Țintă=$B$2,ROW(Rezultat)-MIN(ROW(Rezultat))+1),ROWS($B$3:B17))))&CHAR(10),\"\")","v":""},null,{"$f":"IFERROR(INDEX(Activitate,SMALL(IF(Țintă=$D$2,ROW(Activitate)-MIN(ROW(Activitate))+1),ROWS($B$3:B17)))&CHAR(10),\"\")","v":""},null,{"$f":"IFERROR(INDEX(Activitate,SMALL(IF(Țintă=$F$2,ROW(Activitate)-MIN(ROW(Activitate))+1),ROWS($B$3:B17)))&CHAR(10),\"\")","v":""},null,{"$f":"IFERROR(INDEX(Activitate,SMALL(IF(Țintă=$H$2,ROW(Activitate)-MIN(ROW(Activitate))+1),ROWS($B$3:B17)))&CHAR(10),\"\")","v":""}]
[null,{"$f":"IFERROR(INDEX(Activitate,SMALL(IF(Țintă=$B$2,ROW(Activitate)-MIN(ROW(Activitate))+1),ROWS($B$3:B18)))&\" \"&CHAR(10)&(INDEX(Rezultat,SMALL(IF(Țintă=$B$2,ROW(Rezultat)-MIN(ROW(Rezultat))+1),ROWS($B$3:B18))))&CHAR(10),\"\")","v":""},null,{"$f":"IFERROR(INDEX(Activitate,SMALL(IF(Țintă=$D$2,ROW(Activitate)-MIN(ROW(Activitate))+1),ROWS($B$3:B18)))&CHAR(10),\"\")","v":""},null,{"$f":"IFERROR(INDEX(Activitate,SMALL(IF(Țintă=$F$2,ROW(Activitate)-MIN(ROW(Activitate))+1),ROWS($B$3:B18)))&CHAR(10),\"\")","v":""},null,{"$f":"IFERROR(INDEX(Activitate,SMALL(IF(Țintă=$H$2,ROW(Activitate)-MIN(ROW(Activitate))+1),ROWS($B$3:B18)))&CHAR(10),\"\")","v":""}]
[null,{"$f":"IFERROR(INDEX(Activitate,SMALL(IF(Țintă=$B$2,ROW(Activitate)-MIN(ROW(Activitate))+1),ROWS($B$3:B19)))&\" \"&CHAR(10)&(INDEX(Rezultat,SMALL(IF(Țintă=$B$2,ROW(Rezultat)-MIN(ROW(Rezultat))+1),ROWS($B$3:B19))))&CHAR(10),\"\")","v":""},null,{"$f":"IFERROR(INDEX(Activitate,SMALL(IF(Țintă=$D$2,ROW(Activitate)-MIN(ROW(Activitate))+1),ROWS($B$3:B19)))&CHAR(10),\"\")","v":""},null,{"$f":"IFERROR(INDEX(Activitate,SMALL(IF(Țintă=$F$2,ROW(Activitate)-MIN(ROW(Activitate))+1),ROWS($B$3:B19)))&CHAR(10),\"\")","v":""},null,{"$f":"IFERROR(INDEX(Activitate,SMALL(IF(Țintă=$H$2,ROW(Activitate)-MIN(ROW(Activitate))+1),ROWS($B$3:B19)))&CHAR(10),\"\")","v":""}]
[null,{"$f":"IFERROR(INDEX(Activitate,SMALL(IF(Țintă=$B$2,ROW(Activitate)-MIN(ROW(Activitate))+1),ROWS($B$3:B20)))&\" \"&CHAR(10)&(INDEX(Rezultat,SMALL(IF(Țintă=$B$2,ROW(Rezultat)-MIN(ROW(Rezultat))+1),ROWS($B$3:B20))))&CHAR(10),\"\")","v":""},null,{"$f":"IFERROR(INDEX(Activitate,SMALL(IF(Țintă=$D$2,ROW(Activitate)-MIN(ROW(Activitate))+1),ROWS($B$3:B20)))&CHAR(10),\"\")","v":""},null,{"$f":"IFERROR(INDEX(Activitate,SMALL(IF(Țintă=$F$2,ROW(Activitate)-MIN(ROW(Activitate))+1),ROWS($B$3:B20)))&CHAR(10),\"\")","v":""},null,{"$f":"IFERROR(INDEX(Activitate,SMALL(IF(Țintă=$H$2,ROW(Activitate)-MIN(ROW(Activitate))+1),ROWS($B$3:B20)))&CHAR(10),\"\")","v":""}]
[null,{"$f":"IFERROR(INDEX(Activitate,SMALL(IF(Țintă=$B$2,ROW(Activitate)-MIN(ROW(Activitate))+1),ROWS($B$3:B21)))&\" \"&CHAR(10)&(INDEX(Rezultat,SMALL(IF(Țintă=$B$2,ROW(Rezultat)-MIN(ROW(Rezultat))+1),ROWS($B$3:B21))))&CHAR(10),\"\")","v":""},null,{"$f":"IFERROR(INDEX(Activitate,SMALL(IF(Țintă=$D$2,ROW(Activitate)-MIN(ROW(Activitate))+1),ROWS($B$3:B21)))&CHAR(10),\"\")","v":""},null,{"$f":"IFERROR(INDEX(Activitate,SMALL(IF(Țintă=$F$2,ROW(Activitate)-MIN(ROW(Activitate))+1),ROWS($B$3:B21)))&CHAR(10),\"\")","v":""},null,{"$f":"IFERROR(INDEX(Activitate,SMALL(IF(Țintă=$H$2,ROW(Activitate)-MIN(ROW(Activitate))+1),ROWS($B$3:B21)))&CHAR(10),\"\")","v":""}]
[null,{"$f":"IFERROR(INDEX(Activitate,SMALL(IF(Țintă=$B$2,ROW(Activitate)-MIN(ROW(Activitate))+1),ROWS($B$3:B22)))&\" \"&CHAR(10)&(INDEX(Rezultat,SMALL(IF(Țintă=$B$2,ROW(Rezultat)-MIN(ROW(Rezultat))+1),ROWS($B$3:B22))))&CHAR(10),\"\")","v":""},null,{"$f":"IFERROR(INDEX(Activitate,SMALL(IF(Țintă=$D$2,ROW(Activitate)-MIN(ROW(Activitate))+1),ROWS($B$3:B22)))&CHAR(10),\"\")","v":""},null,{"$f":"IFERROR(INDEX(Activitate,SMALL(IF(Țintă=$F$2,ROW(Activitate)-MIN(ROW(Activitate))+1),ROWS($B$3:B22)))&CHAR(10),\"\")","v":""},null,{"$f":"IFERROR(INDEX(Activitate,SMALL(IF(Țintă=$H$2,ROW(Activitate)-MIN(ROW(Activitate))+1),ROWS($B$3:B22)))&CHAR(10),\"\")","v":""}]
[null,{"$f":"IFERROR(INDEX(Activitate,SMALL(IF(Țintă=$B$2,ROW(Activitate)-MIN(ROW(Activitate))+1),ROWS($B$3:B23)))&\" \"&CHAR(10)&(INDEX(Rezultat,SMALL(IF(Țintă=$B$2,ROW(Rezultat)-MIN(ROW(Rezultat))+1),ROWS($B$3:B23))))&CHAR(10),\"\")","v":""},null,{"$f":"IFERROR(INDEX(Activitate,SMALL(IF(Țintă=$D$2,ROW(Activitate)-MIN(ROW(Activitate))+1),ROWS($B$3:B23)))&CHAR(10),\"\")","v":""},null,{"$f":"IFERROR(INDEX(Activitate,SMALL(IF(Țintă=$F$2,ROW(Activitate)-MIN(ROW(Activitate))+1),ROWS($B$3:B23)))&CHAR(10),\"\")","v":""},null,{"$f":"IFERROR(INDEX(Activitate,SMALL(IF(Țintă=$H$2,ROW(Activitate)-MIN(ROW(Activitate))+1),ROWS($B$3:B23)))&CHAR(10),\"\")","v":""}]
[null,{"$f":"IFERROR(INDEX(Activitate,SMALL(IF(Țintă=$B$2,ROW(Activitate)-MIN(ROW(Activitate))+1),ROWS($B$3:B24)))&\" \"&CHAR(10)&(INDEX(Rezultat,SMALL(IF(Țintă=$B$2,ROW(Rezultat)-MIN(ROW(Rezultat))+1),ROWS($B$3:B24))))&CHAR(10),\"\")","v":""},null,{"$f":"IFERROR(INDEX(Activitate,SMALL(IF(Țintă=$D$2,ROW(Activitate)-MIN(ROW(Activitate))+1),ROWS($B$3:B24)))&CHAR(10),\"\")","v":""},null,{"$f":"IFERROR(INDEX(Activitate,SMALL(IF(Țintă=$F$2,ROW(Activitate)-MIN(ROW(Activitate))+1),ROWS($B$3:B24)))&CHAR(10),\"\")","v":""},null,{"$f":"IFERROR(INDEX(Activitate,SMALL(IF(Țintă=$H$2,ROW(Activitate)-MIN(ROW(Activitate))+1),ROWS($B$3:B24)))&CHAR(10),\"\")","v":""}]
[null,{"$f":"IFERROR(INDEX(Activitate,SMALL(IF(Țintă=$B$2,ROW(Activitate)-MIN(ROW(Activitate))+1),ROWS($B$3:B25)))&\" \"&CHAR(10)&(INDEX(Rezultat,SMALL(IF(Țintă=$B$2,ROW(Rezultat)-MIN(ROW(Rezultat))+1),ROWS($B$3:B25))))&CHAR(10),\"\")","v":""},null,{"$f":"IFERROR(INDEX(Activitate,SMALL(IF(Țintă=$D$2,ROW(Activitate)-MIN(ROW(Activitate))+1),ROWS($B$3:B25)))&CHAR(10),\"\")","v":""},null,{"$f":"IFERROR(INDEX(Activitate,SMALL(IF(Țintă=$F$2,ROW(Activitate)-MIN(ROW(Activitate))+1),ROWS($B$3:B25)))&CHAR(10),\"\")","v":""},null,{"$f":"IFERROR(INDEX(Activitate,SMALL(IF(Țintă=$H$2,ROW(Activitate)-MIN(ROW(Activitate))+1),ROWS($B$3:B25)))&CHAR(10),\"\")","v":""}]
[null,{"$f":"IFERROR(INDEX(Activitate,SMALL(IF(Țintă=$B$2,ROW(Activitate)-MIN(ROW(Activitate))+1),ROWS($B$3:B26)))&\" \"&CHAR(10)&(INDEX(Rezultat,SMALL(IF(Țintă=$B$2,ROW(Rezultat)-MIN(ROW(Rezultat))+1),ROWS($B$3:B26))))&CHAR(10),\"\")","v":""},null,{"$f":"IFERROR(INDEX(Activitate,SMALL(IF(Țintă=$D$2,ROW(Activitate)-MIN(ROW(Activitate))+1),ROWS($B$3:B26)))&CHAR(10),\"\")","v":""},null,{"$f":"IFERROR(INDEX(Activitate,SMALL(IF(Țintă=$F$2,ROW(Activitate)-MIN(ROW(Activitate))+1),ROWS($B$3:B26)))&CHAR(10),\"\")","v":""},null,{"$f":"IFERROR(INDEX(Activitate,SMALL(IF(Țintă=$H$2,ROW(Activitate)-MIN(ROW(Activitate))+1),ROWS($B$3:B26)))&CHAR(10),\"\")","v":""}]
[null,{"$f":"IFERROR(INDEX(Activitate,SMALL(IF(Țintă=$B$2,ROW(Activitate)-MIN(ROW(Activitate))+1),ROWS($B$3:B27)))&\" \"&CHAR(10)&(INDEX(Rezultat,SMALL(IF(Țintă=$B$2,ROW(Rezultat)-MIN(ROW(Rezultat))+1),ROWS($B$3:B27))))&CHAR(10),\"\")","v":""},null,{"$f":"IFERROR(INDEX(Activitate,SMALL(IF(Țintă=$D$2,ROW(Activitate)-MIN(ROW(Activitate))+1),ROWS($B$3:B27)))&CHAR(10),\"\")","v":""},null,{"$f":"IFERROR(INDEX(Activitate,SMALL(IF(Țintă=$F$2,ROW(Activitate)-MIN(ROW(Activitate))+1),ROWS($B$3:B27)))&CHAR(10),\"\")","v":""},null,{"$f":"IFERROR(INDEX(Activitate,SMALL(IF(Țintă=$H$2,ROW(Activitate)-MIN(ROW(Activitate))+1),ROWS($B$3:B27)))&CHAR(10),\"\")","v":""}]
[null,{"$f":"IFERROR(INDEX(Activitate,SMALL(IF(Țintă=$B$2,ROW(Activitate)-MIN(ROW(Activitate))+1),ROWS($B$3:B28)))&\" \"&CHAR(10)&(INDEX(Rezultat,SMALL(IF(Țintă=$B$2,ROW(Rezultat)-MIN(ROW(Rezultat))+1),ROWS($B$3:B28))))&CHAR(10),\"\")","v":""},null,{"$f":"IFERROR(INDEX(Activitate,SMALL(IF(Țintă=$D$2,ROW(Activitate)-MIN(ROW(Activitate))+1),ROWS($B$3:B28)))&CHAR(10),\"\")","v":""},null,{"$f":"IFERROR(INDEX(Activitate,SMALL(IF(Țintă=$F$2,ROW(Activitate)-MIN(ROW(Activitate))+1),ROWS($B$3:B28)))&CHAR(10),\"\")","v":""},null,{"$f":"IFERROR(INDEX(Activitate,SMALL(IF(Țintă=$H$2,ROW(Activitate)-MIN(ROW(Activitate))+1),ROWS($B$3:B28)))&CHAR(10),\"\")","v":""}]
[null,{"$f":"IFERROR(INDEX(Activitate,SMALL(IF(Țintă=$B$2,ROW(Activitate)-MIN(ROW(Activitate))+1),ROWS($B$3:B29)))&\" \"&CHAR(10)&(INDEX(Rezultat,SMALL(IF(Țintă=$B$2,ROW(Rezultat)-MIN(ROW(Rezultat))+1),ROWS($B$3:B29))))&CHAR(10),\"\")","v":""},null,{"$f":"IFERROR(INDEX(Activitate,SMALL(IF(Țintă=$D$2,ROW(Activitate)-MIN(ROW(Activitate))+1),ROWS($B$3:B29)))&CHAR(10),\"\")","v":""},null,{"$f":"IFERROR(INDEX(Activitate,SMALL(IF(Țintă=$F$2,ROW(Activitate)-MIN(ROW(Activitate))+1),ROWS($B$3:B29)))&CHAR(10),\"\")","v":""},null,{"$f":"IFERROR(INDEX(Activitate,SMALL(IF(Țintă=$H$2,ROW(Activitate)-MIN(ROW(Activitate))+1),ROWS($B$3:B29)))&CHAR(10),\"\")","v":""}]
[null,{"$f":"IFERROR(INDEX(Activitate,SMALL(IF(Țintă=$B$2,ROW(Activitate)-MIN(ROW(Activitate))+1),ROWS($B$3:B30)))&\" \"&CHAR(10)&(INDEX(Rezultat,SMALL(IF(Țintă=$B$2,ROW(Rezultat)-MIN(ROW(Rezultat))+1),ROWS($B$3:B30))))&CHAR(10),\"\")","v":""},null,{"$f":"IFERROR(INDEX(Activitate,SMALL(IF(Țintă=$D$2,ROW(Activitate)-MIN(ROW(Activitate))+1),ROWS($B$3:B30)))&CHAR(10),\"\")","v":""},null,{"$f":"IFERROR(INDEX(Activitate,SMALL(IF(Țintă=$F$2,ROW(Activitate)-MIN(ROW(Activitate))+1),ROWS($B$3:B30)))&CHAR(10),\"\")","v":""},null,{"$f":"IFERROR(INDEX(Activitate,SMALL(IF(Țintă=$H$2,ROW(Activitate)-MIN(ROW(Activitate))+1),ROWS($B$3:B30)))&CHAR(10),\"\")","v":""}]
[null,{"$f":"IFERROR(INDEX(Activitate,SMALL(IF(Țintă=$B$2,ROW(Activitate)-MIN(ROW(Activitate))+1),ROWS($B$3:B31)))&\" \"&CHAR(10)&(INDEX(Rezultat,SMALL(IF(Țintă=$B$2,ROW(Rezultat)-MIN(ROW(Rezultat))+1),ROWS($B$3:B31))))&CHAR(10),\"\")","v":""},null,{"$f":"IFERROR(INDEX(Activitate,SMALL(IF(Țintă=$D$2,ROW(Activitate)-MIN(ROW(Activitate))+1),ROWS($B$3:B31)))&CHAR(10),\"\")","v":""},null,{"$f":"IFERROR(INDEX(Activitate,SMALL(IF(Țintă=$F$2,ROW(Activitate)-MIN(ROW(Activitate))+1),ROWS($B$3:B31)))&CHAR(10),\"\")","v":""},null,{"$f":"IFERROR(INDEX(Activitate,SMALL(IF(Țintă=$H$2,ROW(Activitate)-MIN(ROW(Activitate))+1),ROWS($B$3:B31)))&CHAR(10),\"\")","v":""}]
[null,{"$f":"IFERROR(INDEX(Activitate,SMALL(IF(Țintă=$B$2,ROW(Activitate)-MIN(ROW(Activitate))+1),ROWS($B$3:B32)))&\" \"&CHAR(10)&(INDEX(Rezultat,SMALL(IF(Țintă=$B$2,ROW(Rezultat)-MIN(ROW(Rezultat))+1),ROWS($B$3:B32))))&CHAR(10),\"\")","v":""},null,{"$f":"IFERROR(INDEX(Activitate,SMALL(IF(Țintă=$D$2,ROW(Activitate)-MIN(ROW(Activitate))+1),ROWS($B$3:B32)))&CHAR(10),\"\")","v":""},null,{"$f":"IFERROR(INDEX(Activitate,SMALL(IF(Țintă=$F$2,ROW(Activitate)-MIN(ROW(Activitate))+1),ROWS($B$3:B32)))&CHAR(10),\"\")","v":""},null,{"$f":"IFERROR(INDEX(Activitate,SMALL(IF(Țintă=$H$2,ROW(Activitate)-MIN(ROW(Activitate))+1),ROWS($B$3:B32)))&CHAR(10),\"\")","v":""}]
[null,{"$f":"IFERROR(INDEX(Activitate,SMALL(IF(Țintă=$B$2,ROW(Activitate)-MIN(ROW(Activitate))+1),ROWS($B$3:B33)))&\" \"&CHAR(10)&(INDEX(Rezultat,SMALL(IF(Țintă=$B$2,ROW(Rezultat)-MIN(ROW(Rezultat))+1),ROWS($B$3:B33))))&CHAR(10),\"\")","v":""},null,{"$f":"IFERROR(INDEX(Activitate,SMALL(IF(Țintă=$D$2,ROW(Activitate)-MIN(ROW(Activitate))+1),ROWS($B$3:B33)))&CHAR(10),\"\")","v":""},null,{"$f":"IFERROR(INDEX(Activitate,SMALL(IF(Țintă=$F$2,ROW(Activitate)-MIN(ROW(Activitate))+1),ROWS($B$3:B33)))&CHAR(10),\"\")","v":""},null,{"$f":"IFERROR(INDEX(Activitate,SMALL(IF(Țintă=$H$2,ROW(Activitate)-MIN(ROW(Activitate))+1),ROWS($B$3:B33)))&CHAR(10),\"\")","v":""}]
[null,{"$f":"IFERROR(INDEX(Activitate,SMALL(IF(Țintă=$B$2,ROW(Activitate)-MIN(ROW(Activitate))+1),ROWS($B$3:B34)))&\" \"&CHAR(10)&(INDEX(Rezultat,SMALL(IF(Țintă=$B$2,ROW(Rezultat)-MIN(ROW(Rezultat))+1),ROWS($B$3:B34))))&CHAR(10),\"\")","v":""},null,{"$f":"IFERROR(INDEX(Activitate,SMALL(IF(Țintă=$D$2,ROW(Activitate)-MIN(ROW(Activitate))+1),ROWS($B$3:B34)))&CHAR(10),\"\")","v":""},null,{"$f":"IFERROR(INDEX(Activitate,SMALL(IF(Țintă=$F$2,ROW(Activitate)-MIN(ROW(Activitate))+1),ROWS($B$3:B34)))&CHAR(10),\"\")","v":""},null,{"$f":"IFERROR(INDEX(Activitate,SMALL(IF(Țintă=$H$2,ROW(Activitate)-MIN(ROW(Activitate))+1),ROWS($B$3:B34)))&CHAR(10),\"\")","v":""}]
[null,{"$f":"IFERROR(INDEX(Activitate,SMALL(IF(Țintă=$B$2,ROW(Activitate)-MIN(ROW(Activitate))+1),ROWS($B$3:B35)))&\" \"&CHAR(10)&(INDEX(Rezultat,SMALL(IF(Țintă=$B$2,ROW(Rezultat)-MIN(ROW(Rezultat))+1),ROWS($B$3:B35))))&CHAR(10),\"\")","v":""},null,{"$f":"IFERROR(INDEX(Activitate,SMALL(IF(Țintă=$D$2,ROW(Activitate)-MIN(ROW(Activitate))+1),ROWS($B$3:B35)))&CHAR(10),\"\")","v":""},null,{"$f":"IFERROR(INDEX(Activitate,SMALL(IF(Țintă=$F$2,ROW(Activitate)-MIN(ROW(Activitate))+1),ROWS($B$3:B35)))&CHAR(10),\"\")","v":""},null,{"$f":"IFERROR(INDEX(Activitate,SMALL(IF(Țintă=$H$2,ROW(Activitate)-MIN(ROW(Activitate))+1),ROWS($B$3:B35)))&CHAR(10),\"\")","v":""}]
[null,{"$f":"IFERROR(INDEX(Activitate,SMALL(IF(Țintă=$B$2,ROW(Activitate)-MIN(ROW(Activitate))+1),ROWS($B$3:B36)))&\" \"&CHAR(10)&(INDEX(Rezultat,SMALL(IF(Țintă=$B$2,ROW(Rezultat)-MIN(ROW(Rezultat))+1),ROWS($B$3:B36))))&CHAR(10),\"\")","v":""},null,{"$f":"IFERROR(INDEX(Activitate,SMALL(IF(Țintă=$D$2,ROW(Activitate)-MIN(ROW(Activitate))+1),ROWS($B$3:B36)))&CHAR(10),\"\")","v":""},null,{"$f":"IFERROR(INDEX(Activitate,SMALL(IF(Țintă=$F$2,ROW(Activitate)-MIN(ROW(Activitate))+1),ROWS($B$3:B36)))&CHAR(10),\"\")","v":""},null,{"$f":"IFERROR(INDEX(Activitate,SMALL(IF(Țintă=$H$2,ROW(Activitate)-MIN(ROW(Activitate))+1),ROWS($B$3:B36)))&CHAR(10),\"\")","v":""}]
[null,{"$f":"IFERROR(INDEX(Activitate,SMALL(IF(Țintă=$B$2,ROW(Activitate)-MIN(ROW(Activitate))+1),ROWS($B$3:B37)))&\" \"&CHAR(10)&(INDEX(Rezultat,SMALL(IF(Țintă=$B$2,ROW(Rezultat)-MIN(ROW(Rezultat))+1),ROWS($B$3:B37))))&CHAR(10),\"\")","v":""},null,{"$f":"IFERROR(INDEX(Activitate,SMALL(IF(Țintă=$D$2,ROW(Activitate)-MIN(ROW(Activitate))+1),ROWS($B$3:B37)))&CHAR(10),\"\")","v":""},null,{"$f":"IFERROR(INDEX(Activitate,SMALL(IF(Țintă=$F$2,ROW(Activitate)-MIN(ROW(Activitate))+1),ROWS($B$3:B37)))&CHAR(10),\"\")","v":""},null,{"$f":"IFERROR(INDEX(Activitate,SMALL(IF(Țintă=$H$2,ROW(Activitate)-MIN(ROW(Activitate))+1),ROWS($B$3:B37)))&CHAR(10),\"\")","v":""}]
[null,{"$f":"IFERROR(INDEX(Activitate,SMALL(IF(Țintă=$B$2,ROW(Activitate)-MIN(ROW(Activitate))+1),ROWS($B$3:B38)))&\" \"&CHAR(10)&(INDEX(Rezultat,SMALL(IF(Țintă=$B$2,ROW(Rezultat)-MIN(ROW(Rezultat))+1),ROWS($B$3:B38))))&CHAR(10),\"\")","v":""},null,{"$f":"IFERROR(INDEX(Activitate,SMALL(IF(Țintă=$D$2,ROW(Activitate)-MIN(ROW(Activitate))+1),ROWS($B$3:B38)))&CHAR(10),\"\")","v":""},null,{"$f":"IFERROR(INDEX(Activitate,SMALL(IF(Țintă=$F$2,ROW(Activitate)-MIN(ROW(Activitate))+1),ROWS($B$3:B38)))&CHAR(10),\"\")","v":""},null,{"$f":"IFERROR(INDEX(Activitate,SMALL(IF(Țintă=$H$2,ROW(Activitate)-MIN(ROW(Activitate))+1),ROWS($B$3:B38)))&CHAR(10),\"\")","v":""}]
[null,{"$f":"IFERROR(INDEX(Activitate,SMALL(IF(Țintă=$B$2,ROW(Activitate)-MIN(ROW(Activitate))+1),ROWS($B$3:B39)))&\" \"&CHAR(10)&(INDEX(Rezultat,SMALL(IF(Țintă=$B$2,ROW(Rezultat)-MIN(ROW(Rezultat))+1),ROWS($B$3:B39))))&CHAR(10),\"\")","v":""},null,{"$f":"IFERROR(INDEX(Activitate,SMALL(IF(Țintă=$D$2,ROW(Activitate)-MIN(ROW(Activitate))+1),ROWS($B$3:B39)))&CHAR(10),\"\")","v":""},null,{"$f":"IFERROR(INDEX(Activitate,SMALL(IF(Țintă=$F$2,ROW(Activitate)-MIN(ROW(Activitate))+1),ROWS($B$3:B39)))&CHAR(10),\"\")","v":""},null,{"$f":"IFERROR(INDEX(Activitate,SMALL(IF(Țintă=$H$2,ROW(Activitate)-MIN(ROW(Activitate))+1),ROWS($B$3:B39)))&CHAR(10),\"\")","v":""}]
[null,{"$f":"IFERROR(INDEX(Activitate,SMALL(IF(Țintă=$B$2,ROW(Activitate)-MIN(ROW(Activitate))+1),ROWS($B$3:B40)))&\" \"&CHAR(10)&(INDEX(Rezultat,SMALL(IF(Țintă=$B$2,ROW(Rezultat)-MIN(ROW(Rezultat))+1),ROWS($B$3:B40))))&CHAR(10),\"\")","v":""},null,{"$f":"IFERROR(INDEX(Activitate,SMALL(IF(Țintă=$D$2,ROW(Activitate)-MIN(ROW(Activitate))+1),ROWS($B$3:B40)))&CHAR(10),\"\")","v":""},null,{"$f":"IFERROR(INDEX(Activitate,SMALL(IF(Țintă=$F$2,ROW(Activitate)-MIN(ROW(Activitate))+1),ROWS($B$3:B40)))&CHAR(10),\"\")","v":""},null,{"$f":"IFERROR(INDEX(Activitate,SMALL(IF(Țintă=$H$2,ROW(Activitate)-MIN(ROW(Activitate))+1),ROWS($B$3:B40)))&CHAR(10),\"\")","v":""}]
[null,{"$f":"IFERROR(INDEX(Activitate,SMALL(IF(Țintă=$B$2,ROW(Activitate)-MIN(ROW(Activitate))+1),ROWS($B$3:B41)))&\" \"&CHAR(10)&(INDEX(Rezultat,SMALL(IF(Țintă=$B$2,ROW(Rezultat)-MIN(ROW(Rezultat))+1),ROWS($B$3:B41))))&CHAR(10),\"\")","v":""},null,{"$f":"IFERROR(INDEX(Activitate,SMALL(IF(Țintă=$D$2,ROW(Activitate)-MIN(ROW(Activitate))+1),ROWS($B$3:B41)))&CHAR(10),\"\")","v":""},null,{"$f":"IFERROR(INDEX(Activitate,SMALL(IF(Țintă=$F$2,ROW(Activitate)-MIN(ROW(Activitate))+1),ROWS($B$3:B41)))&CHAR(10),\"\")","v":""},null,{"$f":"IFERROR(INDEX(Activitate,SMALL(IF(Țintă=$H$2,ROW(Activitate)-MIN(ROW(Activitate))+1),ROWS($B$3:B41)))&CHAR(10),\"\")","v":""}]
[null,{"$f":"IFERROR(INDEX(Activitate,SMALL(IF(Țintă=$B$2,ROW(Activitate)-MIN(ROW(Activitate))+1),ROWS($B$3:B42)))&\" \"&CHAR(10)&(INDEX(Rezultat,SMALL(IF(Țintă=$B$2,ROW(Rezultat)-MIN(ROW(Rezultat))+1),ROWS($B$3:B42))))&CHAR(10),\"\")","v":""},null,{"$f":"IFERROR(INDEX(Activitate,SMALL(IF(Țintă=$D$2,ROW(Activitate)-MIN(ROW(Activitate))+1),ROWS($B$3:B42)))&CHAR(10),\"\")","v":""},null,{"$f":"IFERROR(INDEX(Activitate,SMALL(IF(Țintă=$F$2,ROW(Activitate)-MIN(ROW(Activitate))+1),ROWS($B$3:B42)))&CHAR(10),\"\")","v":""},null,{"$f":"IFERROR(INDEX(Activitate,SMALL(IF(Țintă=$H$2,ROW(Activitate)-MIN(ROW(Activitate))+1),ROWS($B$3:B42)))&CHAR(10),\"\")","v":""}]
[null,{"$f":"IFERROR(INDEX(Activitate,SMALL(IF(Țintă=$B$2,ROW(Activitate)-MIN(ROW(Activitate))+1),ROWS($B$3:B43)))&\" \"&CHAR(10)&(INDEX(Rezultat,SMALL(IF(Țintă=$B$2,ROW(Rezultat)-MIN(ROW(Rezultat))+1),ROWS($B$3:B43))))&CHAR(10),\"\")","v":""},null,{"$f":"IFERROR(INDEX(Activitate,SMALL(IF(Țintă=$D$2,ROW(Activitate)-MIN(ROW(Activitate))+1),ROWS($B$3:B43)))&CHAR(10),\"\")","v":""},null,{"$f":"IFERROR(INDEX(Activitate,SMALL(IF(Țintă=$F$2,ROW(Activitate)-MIN(ROW(Activitate))+1),ROWS($B$3:B43)))&CHAR(10),\"\")","v":""},null,{"$f":"IFERROR(INDEX(Activitate,SMALL(IF(Țintă=$H$2,ROW(Activitate)-MIN(ROW(Activitate))+1),ROWS($B$3:B43)))&CHAR(10),\"\")","v":""}]
[null,{"$f":"IFERROR(INDEX(Activitate,SMALL(IF(Țintă=$B$2,ROW(Activitate)-MIN(ROW(Activitate))+1),ROWS($B$3:B44)))&\" \"&CHAR(10)&(INDEX(Rezultat,SMALL(IF(Țintă=$B$2,ROW(Rezultat)-MIN(ROW(Rezultat))+1),ROWS($B$3:B44))))&CHAR(10),\"\")","v":""},null,{"$f":"IFERROR(INDEX(Activitate,SMALL(IF(Țintă=$D$2,ROW(Activitate)-MIN(ROW(Activitate))+1),ROWS($B$3:B44)))&CHAR(10),\"\")","v":""},null,{"$f":"IFERROR(INDEX(Activitate,SMALL(IF(Țintă=$F$2,ROW(Activitate)-MIN(ROW(Activitate))+1),ROWS($B$3:B44)))&CHAR(10),\"\")","v":""},null,{"$f":"IFERROR(INDEX(Activitate,SMALL(IF(Țintă=$H$2,ROW(Activitate)-MIN(ROW(Activitate))+1),ROWS($B$3:B44)))&CHAR(10),\"\")","v":""}]
[null,{"$f":"IFERROR(INDEX(Activitate,SMALL(IF(Țintă=$B$2,ROW(Activitate)-MIN(ROW(Activitate))+1),ROWS($B$3:B45)))&\" \"&CHAR(10)&(INDEX(Rezultat,SMALL(IF(Țintă=$B$2,ROW(Rezultat)-MIN(ROW(Rezultat))+1),ROWS($B$3:B45))))&CHAR(10),\"\")","v":""},null,{"$f":"IFERROR(INDEX(Activitate,SMALL(IF(Țintă=$D$2,ROW(Activitate)-MIN(ROW(Activitate))+1),ROWS($B$3:B45)))&CHAR(10),\"\")","v":""},null,{"$f":"IFERROR(INDEX(Activitate,SMALL(IF(Țintă=$F$2,ROW(Activitate)-MIN(ROW(Activitate))+1),ROWS($B$3:B45)))&CHAR(10),\"\")","v":""},null,{"$f":"IFERROR(INDEX(Activitate,SMALL(IF(Țintă=$H$2,ROW(Activitate)-MIN(ROW(Activitate))+1),ROWS($B$3:B45)))&CHAR(10),\"\")","v":""}]
[null,{"$f":"IFERROR(INDEX(Activitate,SMALL(IF(Țintă=$B$2,ROW(Activitate)-MIN(ROW(Activitate))+1),ROWS($B$3:B46)))&\" \"&CHAR(10)&(INDEX(Rezultat,SMALL(IF(Țintă=$B$2,ROW(Rezultat)-MIN(ROW(Rezultat))+1),ROWS($B$3:B46))))&CHAR(10),\"\")","v":""},null,{"$f":"IFERROR(INDEX(Activitate,SMALL(IF(Țintă=$D$2,ROW(Activitate)-MIN(ROW(Activitate))+1),ROWS($B$3:B46)))&CHAR(10),\"\")","v":""},null,{"$f":"IFERROR(INDEX(Activitate,SMALL(IF(Țintă=$F$2,ROW(Activitate)-MIN(ROW(Activitate))+1),ROWS($B$3:B46)))&CHAR(10),\"\")","v":""},null,{"$f":"IFERROR(INDEX(Activitate,SMALL(IF(Țintă=$H$2,ROW(Activitate)-MIN(ROW(Activitate))+1),ROWS($B$3:B46)))&CHAR(10),\"\")","v":""}]
[null,{"$f":"IFERROR(INDEX(Activitate,SMALL(IF(Țintă=$B$2,ROW(Activitate)-MIN(ROW(Activitate))+1),ROWS($B$3:B47)))&\" \"&CHAR(10)&(INDEX(Rezultat,SMALL(IF(Țintă=$B$2,ROW(Rezultat)-MIN(ROW(Rezultat))+1),ROWS($B$3:B47))))&CHAR(10),\"\")","v":""},null,{"$f":"IFERROR(INDEX(Activitate,SMALL(IF(Țintă=$D$2,ROW(Activitate)-MIN(ROW(Activitate))+1),ROWS($B$3:B47)))&CHAR(10),\"\")","v":""},null,{"$f":"IFERROR(INDEX(Activitate,SMALL(IF(Țintă=$F$2,ROW(Activitate)-MIN(ROW(Activitate))+1),ROWS($B$3:B47)))&CHAR(10),\"\")","v":""},null,{"$f":"IFERROR(INDEX(Activitate,SMALL(IF(Țintă=$H$2,ROW(Activitate)-MIN(ROW(Activitate))+1),ROWS($B$3:B47)))&CHAR(10),\"\")","v":""}]
[null,{"$f":"IFERROR(INDEX(Activitate,SMALL(IF(Țintă=$B$2,ROW(Activitate)-MIN(ROW(Activitate))+1),ROWS($B$3:B48)))&\" \"&CHAR(10)&(INDEX(Rezultat,SMALL(IF(Țintă=$B$2,ROW(Rezultat)-MIN(ROW(Rezultat))+1),ROWS($B$3:B48))))&CHAR(10),\"\")","v":""},null,{"$f":"IFERROR(INDEX(Activitate,SMALL(IF(Țintă=$D$2,ROW(Activitate)-MIN(ROW(Activitate))+1),ROWS($B$3:B48)))&CHAR(10),\"\")","v":""},null,{"$f":"IFERROR(INDEX(Activitate,SMALL(IF(Țintă=$F$2,ROW(Activitate)-MIN(ROW(Activitate))+1),ROWS($B$3:B48)))&CHAR(10),\"\")","v":""},null,{"$f":"IFERROR(INDEX(Activitate,SMALL(IF(Țintă=$H$2,ROW(Activitate)-MIN(ROW(Activitate))+1),ROWS($B$3:B48)))&CHAR(10),\"\")","v":""}]
[null,{"$f":"IFERROR(INDEX(Activitate,SMALL(IF(Țintă=$B$2,ROW(Activitate)-MIN(ROW(Activitate))+1),ROWS($B$3:B49)))&\" \"&CHAR(10)&(INDEX(Rezultat,SMALL(IF(Țintă=$B$2,ROW(Rezultat)-MIN(ROW(Rezultat))+1),ROWS($B$3:B49))))&CHAR(10),\"\")","v":""},null,{"$f":"IFERROR(INDEX(Activitate,SMALL(IF(Țintă=$D$2,ROW(Activitate)-MIN(ROW(Activitate))+1),ROWS($B$3:B49)))&CHAR(10),\"\")","v":""},null,{"$f":"IFERROR(INDEX(Activitate,SMALL(IF(Țintă=$F$2,ROW(Activitate)-MIN(ROW(Activitate))+1),ROWS($B$3:B49)))&CHAR(10),\"\")","v":""},null,{"$f":"IFERROR(INDEX(Activitate,SMALL(IF(Țintă=$H$2,ROW(Activitate)-MIN(ROW(Activitate))+1),ROWS($B$3:B49)))&CHAR(10),\"\")","v":""}]
[null,{"$f":"IFERROR(INDEX(Activitate,SMALL(IF(Țintă=$B$2,ROW(Activitate)-MIN(ROW(Activitate))+1),ROWS($B$3:B50)))&\" \"&CHAR(10)&(INDEX(Rezultat,SMALL(IF(Țintă=$B$2,ROW(Rezultat)-MIN(ROW(Rezultat))+1),ROWS($B$3:B50))))&CHAR(10),\"\")","v":""},null,{"$f":"IFERROR(INDEX(Activitate,SMALL(IF(Țintă=$D$2,ROW(Activitate)-MIN(ROW(Activitate))+1),ROWS($B$3:B50)))&CHAR(10),\"\")","v":""},null,{"$f":"IFERROR(INDEX(Activitate,SMALL(IF(Țintă=$F$2,ROW(Activitate)-MIN(ROW(Activitate))+1),ROWS($B$3:B50)))&CHAR(10),\"\")","v":""},null,{"$f":"IFERROR(INDEX(Activitate,SMALL(IF(Țintă=$H$2,ROW(Activitate)-MIN(ROW(Activitate))+1),ROWS($B$3:B50)))&CHAR(10),\"\")","v":""}]
[null,{"$f":"IFERROR(INDEX(Activitate,SMALL(IF(Țintă=$B$2,ROW(Activitate)-MIN(ROW(Activitate))+1),ROWS($B$3:B51)))&\" \"&CHAR(10)&(INDEX(Rezultat,SMALL(IF(Țintă=$B$2,ROW(Rezultat)-MIN(ROW(Rezultat))+1),ROWS($B$3:B51))))&CHAR(10),\"\")","v":""},null,{"$f":"IFERROR(INDEX(Activitate,SMALL(IF(Țintă=$D$2,ROW(Activitate)-MIN(ROW(Activitate))+1),ROWS($B$3:B51)))&CHAR(10),\"\")","v":""},null,{"$f":"IFERROR(INDEX(Activitate,SMALL(IF(Țintă=$F$2,ROW(Activitate)-MIN(ROW(Activitate))+1),ROWS($B$3:B51)))&CHAR(10),\"\")","v":""},null,{"$f":"IFERROR(INDEX(Activitate,SMALL(IF(Țintă=$H$2,ROW(Activitate)-MIN(ROW(Activitate))+1),ROWS($B$3:B51)))&CHAR(10),\"\")","v":""}]
[null,{"$f":"IFERROR(INDEX(Activitate,SMALL(IF(Țintă=$B$2,ROW(Activitate)-MIN(ROW(Activitate))+1),ROWS($B$3:B52)))&\" \"&CHAR(10)&(INDEX(Rezultat,SMALL(IF(Țintă=$B$2,ROW(Rezultat)-MIN(ROW(Rezultat))+1),ROWS($B$3:B52))))&CHAR(10),\"\")","v":""},null,{"$f":"IFERROR(INDEX(Activitate,SMALL(IF(Țintă=$D$2,ROW(Activitate)-MIN(ROW(Activitate))+1),ROWS($B$3:B52)))&CHAR(10),\"\")","v":""},null,{"$f":"IFERROR(INDEX(Activitate,SMALL(IF(Țintă=$F$2,ROW(Activitate)-MIN(ROW(Activitate))+1),ROWS($B$3:B52)))&CHAR(10),\"\")","v":""},null,{"$f":"IFERROR(INDEX(Activitate,SMALL(IF(Țintă=$H$2,ROW(Activitate)-MIN(ROW(Activitate))+1),ROWS($B$3:B52)))&CHAR(10),\"\")","v":""}]
[null,{"$f":"IFERROR(INDEX(Activitate,SMALL(IF(Țintă=$B$2,ROW(Activitate)-MIN(ROW(Activitate))+1),ROWS($B$3:B53)))&\" \"&CHAR(10)&(INDEX(Rezultat,SMALL(IF(Țintă=$B$2,ROW(Rezultat)-MIN(ROW(Rezultat))+1),ROWS($B$3:B53))))&CHAR(10),\"\")","v":""},null,{"$f":"IFERROR(INDEX(Activitate,SMALL(IF(Țintă=$D$2,ROW(Activitate)-MIN(ROW(Activitate))+1),ROWS($B$3:B53)))&CHAR(10),\"\")","v":""},null,{"$f":"IFERROR(INDEX(Activitate,SMALL(IF(Țintă=$F$2,ROW(Activitate)-MIN(ROW(Activitate))+1),ROWS($B$3:B53)))&CHAR(10),\"\")","v":""},null,{"$f":"IFERROR(INDEX(Activitate,SMALL(IF(Țintă=$H$2,ROW(Activitate)-MIN(ROW(Activitate))+1),ROWS($B$3:B53)))&CHAR(10),\"\")","v":""}]
[null,{"$f":"IFERROR(INDEX(Activitate,SMALL(IF(Țintă=$B$2,ROW(Activitate)-MIN(ROW(Activitate))+1),ROWS($B$3:B54)))&\" \"&CHAR(10)&(INDEX(Rezultat,SMALL(IF(Țintă=$B$2,ROW(Rezultat)-MIN(ROW(Rezultat))+1),ROWS($B$3:B54))))&CHAR(10),\"\")","v":""},null,{"$f":"IFERROR(INDEX(Activitate,SMALL(IF(Țintă=$D$2,ROW(Activitate)-MIN(ROW(Activitate))+1),ROWS($B$3:B54)))&CHAR(10),\"\")","v":""},null,{"$f":"IFERROR(INDEX(Activitate,SMALL(IF(Țintă=$F$2,ROW(Activitate)-MIN(ROW(Activitate))+1),ROWS($B$3:B54)))&CHAR(10),\"\")","v":""},null,{"$f":"IFERROR(INDEX(Activitate,SMALL(IF(Țintă=$H$2,ROW(Activitate)-MIN(ROW(Activitate))+1),ROWS($B$3:B54)))&CHAR(10),\"\")","v":""}]
[null,{"$f":"IFERROR(INDEX(Activitate,SMALL(IF(Țintă=$B$2,ROW(Activitate)-MIN(ROW(Activitate))+1),ROWS($B$3:B55)))&\" \"&CHAR(10)&(INDEX(Rezultat,SMALL(IF(Țintă=$B$2,ROW(Rezultat)-MIN(ROW(Rezultat))+1),ROWS($B$3:B55))))&CHAR(10),\"\")","v":""},null,{"$f":"IFERROR(INDEX(Activitate,SMALL(IF(Țintă=$D$2,ROW(Activitate)-MIN(ROW(Activitate))+1),ROWS($B$3:B55)))&CHAR(10),\"\")","v":""},null,{"$f":"IFERROR(INDEX(Activitate,SMALL(IF(Țintă=$F$2,ROW(Activitate)-MIN(ROW(Activitate))+1),ROWS($B$3:B55)))&CHAR(10),\"\")","v":""},null,{"$f":"IFERROR(INDEX(Activitate,SMALL(IF(Țintă=$H$2,ROW(Activitate)-MIN(ROW(Activitate))+1),ROWS($B$3:B55)))&CHAR(10),\"\")","v":""}]
[null,{"$f":"IFERROR(INDEX(Activitate,SMALL(IF(Țintă=$B$2,ROW(Activitate)-MIN(ROW(Activitate))+1),ROWS($B$3:B56)))&\" \"&CHAR(10)&(INDEX(Rezultat,SMALL(IF(Țintă=$B$2,ROW(Rezultat)-MIN(ROW(Rezultat))+1),ROWS($B$3:B56))))&CHAR(10),\"\")","v":""},null,{"$f":"IFERROR(INDEX(Activitate,SMALL(IF(Țintă=$D$2,ROW(Activitate)-MIN(ROW(Activitate))+1),ROWS($B$3:B56)))&CHAR(10),\"\")","v":""},null,{"$f":"IFERROR(INDEX(Activitate,SMALL(IF(Țintă=$F$2,ROW(Activitate)-MIN(ROW(Activitate))+1),ROWS($B$3:B56)))&CHAR(10),\"\")","v":""},null,{"$f":"IFERROR(INDEX(Activitate,SMALL(IF(Țintă=$H$2,ROW(Activitate)-MIN(ROW(Activitate))+1),ROWS($B$3:B56)))&CHAR(10),\"\")","v":""}]
[null,{"$f":"IFERROR(INDEX(Activitate,SMALL(IF(Țintă=$B$2,ROW(Activitate)-MIN(ROW(Activitate))+1),ROWS($B$3:B57)))&\" \"&CHAR(10)&(INDEX(Rezultat,SMALL(IF(Țintă=$B$2,ROW(Rezultat)-MIN(ROW(Rezultat))+1),ROWS($B$3:B57))))&CHAR(10),\"\")","v":""},null,{"$f":"IFERROR(INDEX(Activitate,SMALL(IF(Țintă=$D$2,ROW(Activitate)-MIN(ROW(Activitate))+1),ROWS($B$3:B57)))&CHAR(10),\"\")","v":""},null,{"$f":"IFERROR(INDEX(Activitate,SMALL(IF(Țintă=$F$2,ROW(Activitate)-MIN(ROW(Activitate))+1),ROWS($B$3:B57)))&CHAR(10),\"\")","v":""},null,{"$f":"IFERROR(INDEX(Activitate,SMALL(IF(Țintă=$H$2,ROW(Activitate)-MIN(ROW(Activitate))+1),ROWS($B$3:B57)))&CHAR(10),\"\")","v":""}]
[null,{"$f":"IFERROR(INDEX(Activitate,SMALL(IF(Țintă=$B$2,ROW(Activitate)-MIN(ROW(Activitate))+1),ROWS($B$3:B58)))&\" \"&CHAR(10)&(INDEX(Rezultat,SMALL(IF(Țintă=$B$2,ROW(Rezultat)-MIN(ROW(Rezultat))+1),ROWS($B$3:B58))))&CHAR(10),\"\")","v":""},null,{"$f":"IFERROR(INDEX(Activitate,SMALL(IF(Țintă=$D$2,ROW(Activitate)-MIN(ROW(Activitate))+1),ROWS($B$3:B58)))&CHAR(10),\"\")","v":""},null,{"$f":"IFERROR(INDEX(Activitate,SMALL(IF(Țintă=$F$2,ROW(Activitate)-MIN(ROW(Activitate))+1),ROWS($B$3:B58)))&CHAR(10),\"\")","v":""},null,{"$f":"IFERROR(INDEX(Activitate,SMALL(IF(Țintă=$H$2,ROW(Activitate)-MIN(ROW(Activitate))+1),ROWS($B$3:B58)))&CHAR(10),\"\")","v":""}]
[null,{"$f":"IFERROR(INDEX(Activitate,SMALL(IF(Țintă=$B$2,ROW(Activitate)-MIN(ROW(Activitate))+1),ROWS($B$3:B59)))&\" \"&CHAR(10)&(INDEX(Rezultat,SMALL(IF(Țintă=$B$2,ROW(Rezultat)-MIN(ROW(Rezultat))+1),ROWS($B$3:B59))))&CHAR(10),\"\")","v":""},null,{"$f":"IFERROR(INDEX(Activitate,SMALL(IF(Țintă=$D$2,ROW(Activitate)-MIN(ROW(Activitate))+1),ROWS($B$3:B59)))&CHAR(10),\"\")","v":""},null,{"$f":"IFERROR(INDEX(Activitate,SMALL(IF(Țintă=$F$2,ROW(Activitate)-MIN(ROW(Activitate))+1),ROWS($B$3:B59)))&CHAR(10),\"\")","v":""},null,{"$f":"IFERROR(INDEX(Activitate,SMALL(IF(Țintă=$H$2,ROW(Activitate)-MIN(ROW(Activitate))+1),ROWS($B$3:B59)))&CHAR(10),\"\")","v":""}]
[null,{"$f":"IFERROR(INDEX(Activitate,SMALL(IF(Țintă=$B$2,ROW(Activitate)-MIN(ROW(Activitate))+1),ROWS($B$3:B60)))&\" \"&CHAR(10)&(INDEX(Rezultat,SMALL(IF(Țintă=$B$2,ROW(Rezultat)-MIN(ROW(Rezultat))+1),ROWS($B$3:B60))))&CHAR(10),\"\")","v":""},null,{"$f":"IFERROR(INDEX(Activitate,SMALL(IF(Țintă=$D$2,ROW(Activitate)-MIN(ROW(Activitate))+1),ROWS($B$3:B60)))&CHAR(10),\"\")","v":""},null,{"$f":"IFERROR(INDEX(Activitate,SMALL(IF(Țintă=$F$2,ROW(Activitate)-MIN(ROW(Activitate))+1),ROWS($B$3:B60)))&CHAR(10),\"\")","v":""},null,{"$f":"IFERROR(INDEX(Activitate,SMALL(IF(Țintă=$H$2,ROW(Activitate)-MIN(ROW(Activitate))+1),ROWS($B$3:B60)))&CHAR(10),\"\")","v":""}]
[null,{"$f":"IFERROR(INDEX(Activitate,SMALL(IF(Țintă=$B$2,ROW(Activitate)-MIN(ROW(Activitate))+1),ROWS($B$3:B61)))&\" \"&CHAR(10)&(INDEX(Rezultat,SMALL(IF(Țintă=$B$2,ROW(Rezultat)-MIN(ROW(Rezultat))+1),ROWS($B$3:B61))))&CHAR(10),\"\")","v":""},null,{"$f":"IFERROR(INDEX(Activitate,SMALL(IF(Țintă=$D$2,ROW(Activitate)-MIN(ROW(Activitate))+1),ROWS($B$3:B61)))&CHAR(10),\"\")","v":""},null,{"$f":"IFERROR(INDEX(Activitate,SMALL(IF(Țintă=$F$2,ROW(Activitate)-MIN(ROW(Activitate))+1),ROWS($B$3:B61)))&CHAR(10),\"\")","v":""},null,{"$f":"IFERROR(INDEX(Activitate,SMALL(IF(Țintă=$H$2,ROW(Activitate)-MIN(ROW(Activitate))+1),ROWS($B$3:B61)))&CHAR(10),\"\")","v":""}]
[null,{"$f":"IFERROR(INDEX(Activitate,SMALL(IF(Țintă=$B$2,ROW(Activitate)-MIN(ROW(Activitate))+1),ROWS($B$3:B62)))&\" \"&CHAR(10)&(INDEX(Rezultat,SMALL(IF(Țintă=$B$2,ROW(Rezultat)-MIN(ROW(Rezultat))+1),ROWS($B$3:B62))))&CHAR(10),\"\")","v":""},null,{"$f":"IFERROR(INDEX(Activitate,SMALL(IF(Țintă=$D$2,ROW(Activitate)-MIN(ROW(Activitate))+1),ROWS($B$3:B62)))&CHAR(10),\"\")","v":""},null,{"$f":"IFERROR(INDEX(Activitate,SMALL(IF(Țintă=$F$2,ROW(Activitate)-MIN(ROW(Activitate))+1),ROWS($B$3:B62)))&CHAR(10),\"\")","v":""},null,{"$f":"IFERROR(INDEX(Activitate,SMALL(IF(Țintă=$H$2,ROW(Activitate)-MIN(ROW(Activitate))+1),ROWS($B$3:B62)))&CHAR(10),\"\")","v":""}]
[null,{"$f":"IFERROR(INDEX(Activitate,SMALL(IF(Țintă=$B$2,ROW(Activitate)-MIN(ROW(Activitate))+1),ROWS($B$3:B63)))&\" \"&CHAR(10)&(INDEX(Rezultat,SMALL(IF(Țintă=$B$2,ROW(Rezultat)-MIN(ROW(Rezultat))+1),ROWS($B$3:B63))))&CHAR(10),\"\")","v":""},null,{"$f":"IFERROR(INDEX(Activitate,SMALL(IF(Țintă=$D$2,ROW(Activitate)-MIN(ROW(Activitate))+1),ROWS($B$3:B63)))&CHAR(10),\"\")","v":""},null,{"$f":"IFERROR(INDEX(Activitate,SMALL(IF(Țintă=$F$2,ROW(Activitate)-MIN(ROW(Activitate))+1),ROWS($B$3:B63)))&CHAR(10),\"\")","v":""},null,{"$f":"IFERROR(INDEX(Activitate,SMALL(IF(Țintă=$H$2,ROW(Activitate)-MIN(ROW(Activitate))+1),ROWS($B$3:B63)))&CHAR(10),\"\")","v":""}]
[null,{"$f":"IFERROR(INDEX(Activitate,SMALL(IF(Țintă=$B$2,ROW(Activitate)-MIN(ROW(Activitate))+1),ROWS($B$3:B64)))&\" \"&CHAR(10)&(INDEX(Rezultat,SMALL(IF(Țintă=$B$2,ROW(Rezultat)-MIN(ROW(Rezultat))+1),ROWS($B$3:B64))))&CHAR(10),\"\")","v":""},null,{"$f":"IFERROR(INDEX(Activitate,SMALL(IF(Țintă=$D$2,ROW(Activitate)-MIN(ROW(Activitate))+1),ROWS($B$3:B64)))&CHAR(10),\"\")","v":""},null,{"$f":"IFERROR(INDEX(Activitate,SMALL(IF(Țintă=$F$2,ROW(Activitate)-MIN(ROW(Activitate))+1),ROWS($B$3:B64)))&CHAR(10),\"\")","v":""},null,{"$f":"IFERROR(INDEX(Activitate,SMALL(IF(Țintă=$H$2,ROW(Activitate)-MIN(ROW(Activitate))+1),ROWS($B$3:B64)))&CHAR(10),\"\")","v":""}]
[null,{"$f":"IFERROR(INDEX(Activitate,SMALL(IF(Țintă=$B$2,ROW(Activitate)-MIN(ROW(Activitate))+1),ROWS($B$3:B65)))&\" \"&CHAR(10)&(INDEX(Rezultat,SMALL(IF(Țintă=$B$2,ROW(Rezultat)-MIN(ROW(Rezultat))+1),ROWS($B$3:B65))))&CHAR(10),\"\")","v":""},null,{"$f":"IFERROR(INDEX(Activitate,SMALL(IF(Țintă=$D$2,ROW(Activitate)-MIN(ROW(Activitate))+1),ROWS($B$3:B65)))&CHAR(10),\"\")","v":""},null,{"$f":"IFERROR(INDEX(Activitate,SMALL(IF(Țintă=$F$2,ROW(Activitate)-MIN(ROW(Activitate))+1),ROWS($B$3:B65)))&CHAR(10),\"\")","v":""},null,{"$f":"IFERROR(INDEX(Activitate,SMALL(IF(Țintă=$H$2,ROW(Activitate)-MIN(ROW(Activitate))+1),ROWS($B$3:B65)))&CHAR(10),\"\")","v":""}]
[null,{"$f":"IFERROR(INDEX(Activitate,SMALL(IF(Țintă=$B$2,ROW(Activitate)-MIN(ROW(Activitate))+1),ROWS($B$3:B66)))&\" \"&CHAR(10)&(INDEX(Rezultat,SMALL(IF(Țintă=$B$2,ROW(Rezultat)-MIN(ROW(Rezultat))+1),ROWS($B$3:B66))))&CHAR(10),\"\")","v":""},null,{"$f":"IFERROR(INDEX(Activitate,SMALL(IF(Țintă=$D$2,ROW(Activitate)-MIN(ROW(Activitate))+1),ROWS($B$3:B66)))&CHAR(10),\"\")","v":""},null,{"$f":"IFERROR(INDEX(Activitate,SMALL(IF(Țintă=$F$2,ROW(Activitate)-MIN(ROW(Activitate))+1),ROWS($B$3:B66)))&CHAR(10),\"\")","v":""},null,{"$f":"IFERROR(INDEX(Activitate,SMALL(IF(Țintă=$H$2,ROW(Activitate)-MIN(ROW(Activitate))+1),ROWS($B$3:B66)))&CHAR(10),\"\")","v":""}]
[null,{"$f":"IFERROR(INDEX(Activitate,SMALL(IF(Țintă=$B$2,ROW(Activitate)-MIN(ROW(Activitate))+1),ROWS($B$3:B67)))&\" \"&CHAR(10)&(INDEX(Rezultat,SMALL(IF(Țintă=$B$2,ROW(Rezultat)-MIN(ROW(Rezultat))+1),ROWS($B$3:B67))))&CHAR(10),\"\")","v":""},null,{"$f":"IFERROR(INDEX(Activitate,SMALL(IF(Țintă=$D$2,ROW(Activitate)-MIN(ROW(Activitate))+1),ROWS($B$3:B67)))&CHAR(10),\"\")","v":""},null,{"$f":"IFERROR(INDEX(Activitate,SMALL(IF(Țintă=$F$2,ROW(Activitate)-MIN(ROW(Activitate))+1),ROWS($B$3:B67)))&CHAR(10),\"\")","v":""},null,{"$f":"IFERROR(INDEX(Activitate,SMALL(IF(Țintă=$H$2,ROW(Activitate)-MIN(ROW(Activitate))+1),ROWS($B$3:B67)))&CHAR(10),\"\")","v":""}]
[null,{"$f":"IFERROR(INDEX(Activitate,SMALL(IF(Țintă=$B$2,ROW(Activitate)-MIN(ROW(Activitate))+1),ROWS($B$3:B68)))&\" \"&CHAR(10)&(INDEX(Rezultat,SMALL(IF(Țintă=$B$2,ROW(Rezultat)-MIN(ROW(Rezultat))+1),ROWS($B$3:B68))))&CHAR(10),\"\")","v":""},null,{"$f":"IFERROR(INDEX(Activitate,SMALL(IF(Țintă=$D$2,ROW(Activitate)-MIN(ROW(Activitate))+1),ROWS($B$3:B68)))&CHAR(10),\"\")","v":""},null,{"$f":"IFERROR(INDEX(Activitate,SMALL(IF(Țintă=$F$2,ROW(Activitate)-MIN(ROW(Activitate))+1),ROWS($B$3:B68)))&CHAR(10),\"\")","v":""},null,{"$f":"IFERROR(INDEX(Activitate,SMALL(IF(Țintă=$H$2,ROW(Activitate)-MIN(ROW(Activitate))+1),ROWS($B$3:B68)))&CHAR(10),\"\")","v":""}]
[null,{"$f":"IFERROR(INDEX(Activitate,SMALL(IF(Țintă=$B$2,ROW(Activitate)-MIN(ROW(Activitate))+1),ROWS($B$3:B69)))&\" \"&CHAR(10)&(INDEX(Rezultat,SMALL(IF(Țintă=$B$2,ROW(Rezultat)-MIN(ROW(Rezultat))+1),ROWS($B$3:B69))))&CHAR(10),\"\")","v":""},null,{"$f":"IFERROR(INDEX(Activitate,SMALL(IF(Țintă=$D$2,ROW(Activitate)-MIN(ROW(Activitate))+1),ROWS($B$3:B69)))&CHAR(10),\"\")","v":""},null,{"$f":"IFERROR(INDEX(Activitate,SMALL(IF(Țintă=$F$2,ROW(Activitate)-MIN(ROW(Activitate))+1),ROWS($B$3:B69)))&CHAR(10),\"\")","v":""},null,{"$f":"IFERROR(INDEX(Activitate,SMALL(IF(Țintă=$H$2,ROW(Activitate)-MIN(ROW(Activitate))+1),ROWS($B$3:B69)))&CHAR(10),\"\")","v":""}]
[null,{"$f":"IFERROR(INDEX(Activitate,SMALL(IF(Țintă=$B$2,ROW(Activitate)-MIN(ROW(Activitate))+1),ROWS($B$3:B70)))&\" \"&CHAR(10)&(INDEX(Rezultat,SMALL(IF(Țintă=$B$2,ROW(Rezultat)-MIN(ROW(Rezultat))+1),ROWS($B$3:B70))))&CHAR(10),\"\")","v":""},null,{"$f":"IFERROR(INDEX(Activitate,SMALL(IF(Țintă=$D$2,ROW(Activitate)-MIN(ROW(Activitate))+1),ROWS($B$3:B70)))&CHAR(10),\"\")","v":""},null,{"$f":"IFERROR(INDEX(Activitate,SMALL(IF(Țintă=$F$2,ROW(Activitate)-MIN(ROW(Activitate))+1),ROWS($B$3:B70)))&CHAR(10),\"\")","v":""},null,{"$f":"IFERROR(INDEX(Activitate,SMALL(IF(Țintă=$H$2,ROW(Activitate)-MIN(ROW(Activitate))+1),ROWS($B$3:B70)))&CHAR(10),\"\")","v":""}]
[null,{"$f":"IFERROR(INDEX(Activitate,SMALL(IF(Țintă=$B$2,ROW(Activitate)-MIN(ROW(Activitate))+1),ROWS($B$3:B71)))&\" \"&CHAR(10)&(INDEX(Rezultat,SMALL(IF(Țintă=$B$2,ROW(Rezultat)-MIN(ROW(Rezultat))+1),ROWS($B$3:B71))))&CHAR(10),\"\")","v":""},null,{"$f":"IFERROR(INDEX(Activitate,SMALL(IF(Țintă=$D$2,ROW(Activitate)-MIN(ROW(Activitate))+1),ROWS($B$3:B71)))&CHAR(10),\"\")","v":""},null,{"$f":"IFERROR(INDEX(Activitate,SMALL(IF(Țintă=$F$2,ROW(Activitate)-MIN(ROW(Activitate))+1),ROWS($B$3:B71)))&CHAR(10),\"\")","v":""},null,{"$f":"IFERROR(INDEX(Activitate,SMALL(IF(Țintă=$H$2,ROW(Activitate)-MIN(ROW(Activitate))+1),ROWS($B$3:B71)))&CHAR(10),\"\")","v":""}]
[null,{"$f":"IFERROR(INDEX(Activitate,SMALL(IF(Țintă=$B$2,ROW(Activitate)-MIN(ROW(Activitate))+1),ROWS($B$3:B72)))&\" \"&CHAR(10)&(INDEX(Rezultat,SMALL(IF(Țintă=$B$2,ROW(Rezultat)-MIN(ROW(Rezultat))+1),ROWS($B$3:B72))))&CHAR(10),\"\")","v":""},null,{"$f":"IFERROR(INDEX(Activitate,SMALL(IF(Țintă=$D$2,ROW(Activitate)-MIN(ROW(Activitate))+1),ROWS($B$3:B72)))&CHAR(10),\"\")","v":""},null,{"$f":"IFERROR(INDEX(Activitate,SMALL(IF(Țintă=$F$2,ROW(Activitate)-MIN(ROW(Activitate))+1),ROWS($B$3:B72)))&CHAR(10),\"\")","v":""},null,{"$f":"IFERROR(INDEX(Activitate,SMALL(IF(Țintă=$H$2,ROW(Activitate)-MIN(ROW(Activitate))+1),ROWS($B$3:B72)))&CHAR(10),\"\")","v":""}]
[null,{"$f":"IFERROR(INDEX(Activitate,SMALL(IF(Țintă=$B$2,ROW(Activitate)-MIN(ROW(Activitate))+1),ROWS($B$3:B73)))&\" \"&CHAR(10)&(INDEX(Rezultat,SMALL(IF(Țintă=$B$2,ROW(Rezultat)-MIN(ROW(Rezultat))+1),ROWS($B$3:B73))))&CHAR(10),\"\")","v":""},null,{"$f":"IFERROR(INDEX(Activitate,SMALL(IF(Țintă=$D$2,ROW(Activitate)-MIN(ROW(Activitate))+1),ROWS($B$3:B73)))&CHAR(10),\"\")","v":""},null,{"$f":"IFERROR(INDEX(Activitate,SMALL(IF(Țintă=$F$2,ROW(Activitate)-MIN(ROW(Activitate))+1),ROWS($B$3:B73)))&CHAR(10),\"\")","v":""},null,{"$f":"IFERROR(INDEX(Activitate,SMALL(IF(Țintă=$H$2,ROW(Activitate)-MIN(ROW(Activitate))+1),ROWS($B$3:B73)))&CHAR(10),\"\")","v":""}]
[null,{"$f":"IFERROR(INDEX(Activitate,SMALL(IF(Țintă=$B$2,ROW(Activitate)-MIN(ROW(Activitate))+1),ROWS($B$3:B74)))&\" \"&CHAR(10)&(INDEX(Rezultat,SMALL(IF(Țintă=$B$2,ROW(Rezultat)-MIN(ROW(Rezultat))+1),ROWS($B$3:B74))))&CHAR(10),\"\")","v":""},null,{"$f":"IFERROR(INDEX(Activitate,SMALL(IF(Țintă=$D$2,ROW(Activitate)-MIN(ROW(Activitate))+1),ROWS($B$3:B74)))&CHAR(10),\"\")","v":""},null,{"$f":"IFERROR(INDEX(Activitate,SMALL(IF(Țintă=$F$2,ROW(Activitate)-MIN(ROW(Activitate))+1),ROWS($B$3:B74)))&CHAR(10),\"\")","v":""},null,{"$f":"IFERROR(INDEX(Activitate,SMALL(IF(Țintă=$H$2,ROW(Activitate)-MIN(ROW(Activitate))+1),ROWS($B$3:B74)))&CHAR(10),\"\")","v":""}]
[null,{"$f":"IFERROR(INDEX(Activitate,SMALL(IF(Țintă=$B$2,ROW(Activitate)-MIN(ROW(Activitate))+1),ROWS($B$3:B75)))&\" \"&CHAR(10)&(INDEX(Rezultat,SMALL(IF(Țintă=$B$2,ROW(Rezultat)-MIN(ROW(Rezultat))+1),ROWS($B$3:B75))))&CHAR(10),\"\")","v":""},null,{"$f":"IFERROR(INDEX(Activitate,SMALL(IF(Țintă=$D$2,ROW(Activitate)-MIN(ROW(Activitate))+1),ROWS($B$3:B75)))&CHAR(10),\"\")","v":""},null,{"$f":"IFERROR(INDEX(Activitate,SMALL(IF(Țintă=$F$2,ROW(Activitate)-MIN(ROW(Activitate))+1),ROWS($B$3:B75)))&CHAR(10),\"\")","v":""},null,{"$f":"IFERROR(INDEX(Activitate,SMALL(IF(Țintă=$H$2,ROW(Activitate)-MIN(ROW(Activitate))+1),ROWS($B$3:B75)))&CHAR(10),\"\")","v":""}]
[null,{"$f":"IFERROR(INDEX(Activitate,SMALL(IF(Țintă=$B$2,ROW(Activitate)-MIN(ROW(Activitate))+1),ROWS($B$3:B76)))&\" \"&CHAR(10)&(INDEX(Rezultat,SMALL(IF(Țintă=$B$2,ROW(Rezultat)-MIN(ROW(Rezultat))+1),ROWS($B$3:B76))))&CHAR(10),\"\")","v":""},null,{"$f":"IFERROR(INDEX(Activitate,SMALL(IF(Țintă=$D$2,ROW(Activitate)-MIN(ROW(Activitate))+1),ROWS($B$3:B76)))&CHAR(10),\"\")","v":""},null,{"$f":"IFERROR(INDEX(Activitate,SMALL(IF(Țintă=$F$2,ROW(Activitate)-MIN(ROW(Activitate))+1),ROWS($B$3:B76)))&CHAR(10),\"\")","v":""},null,{"$f":"IFERROR(INDEX(Activitate,SMALL(IF(Țintă=$H$2,ROW(Activitate)-MIN(ROW(Activitate))+1),ROWS($B$3:B76)))&CHAR(10),\"\")","v":""}]
[null,{"$f":"IFERROR(INDEX(Activitate,SMALL(IF(Țintă=$B$2,ROW(Activitate)-MIN(ROW(Activitate))+1),ROWS($B$3:B77)))&\" \"&CHAR(10)&(INDEX(Rezultat,SMALL(IF(Țintă=$B$2,ROW(Rezultat)-MIN(ROW(Rezultat))+1),ROWS($B$3:B77))))&CHAR(10),\"\")","v":""},null,{"$f":"IFERROR(INDEX(Activitate,SMALL(IF(Țintă=$D$2,ROW(Activitate)-MIN(ROW(Activitate))+1),ROWS($B$3:B77)))&CHAR(10),\"\")","v":""},null,{"$f":"IFERROR(INDEX(Activitate,SMALL(IF(Țintă=$F$2,ROW(Activitate)-MIN(ROW(Activitate))+1),ROWS($B$3:B77)))&CHAR(10),\"\")","v":""},null,{"$f":"IFERROR(INDEX(Activitate,SMALL(IF(Țintă=$H$2,ROW(Activitate)-MIN(ROW(Activitate))+1),ROWS($B$3:B77)))&CHAR(10),\"\")","v":""}]
[null,{"$f":"IFERROR(INDEX(Activitate,SMALL(IF(Țintă=$B$2,ROW(Activitate)-MIN(ROW(Activitate))+1),ROWS($B$3:B78)))&\" \"&CHAR(10)&(INDEX(Rezultat,SMALL(IF(Țintă=$B$2,ROW(Rezultat)-MIN(ROW(Rezultat))+1),ROWS($B$3:B78))))&CHAR(10),\"\")","v":""},null,{"$f":"IFERROR(INDEX(Activitate,SMALL(IF(Țintă=$D$2,ROW(Activitate)-MIN(ROW(Activitate))+1),ROWS($B$3:B78)))&CHAR(10),\"\")","v":""},null,{"$f":"IFERROR(INDEX(Activitate,SMALL(IF(Țintă=$F$2,ROW(Activitate)-MIN(ROW(Activitate))+1),ROWS($B$3:B78)))&CHAR(10),\"\")","v":""},null,{"$f":"IFERROR(INDEX(Activitate,SMALL(IF(Țintă=$H$2,ROW(Activitate)-MIN(ROW(Activitate))+1),ROWS($B$3:B78)))&CHAR(10),\"\")","v":""}]
[null,{"$f":"IFERROR(INDEX(Activitate,SMALL(IF(Țintă=$B$2,ROW(Activitate)-MIN(ROW(Activitate))+1),ROWS($B$3:B79)))&\" \"&CHAR(10)&(INDEX(Rezultat,SMALL(IF(Țintă=$B$2,ROW(Rezultat)-MIN(ROW(Rezultat))+1),ROWS($B$3:B79))))&CHAR(10),\"\")","v":""},null,{"$f":"IFERROR(INDEX(Activitate,SMALL(IF(Țintă=$D$2,ROW(Activitate)-MIN(ROW(Activitate))+1),ROWS($B$3:B79)))&CHAR(10),\"\")","v":""},null,{"$f":"IFERROR(INDEX(Activitate,SMALL(IF(Țintă=$F$2,ROW(Activitate)-MIN(ROW(Activitate))+1),ROWS($B$3:B79)))&CHAR(10),\"\")","v":""},null,{"$f":"IFERROR(INDEX(Activitate,SMALL(IF(Țintă=$H$2,ROW(Activitate)-MIN(ROW(Activitate))+1),ROWS($B$3:B79)))&CHAR(10),\"\")","v":""}]
[null,{"$f":"IFERROR(INDEX(Activitate,SMALL(IF(Țintă=$B$2,ROW(Activitate)-MIN(ROW(Activitate))+1),ROWS($B$3:B80)))&\" \"&CHAR(10)&(INDEX(Rezultat,SMALL(IF(Țintă=$B$2,ROW(Rezultat)-MIN(ROW(Rezultat))+1),ROWS($B$3:B80))))&CHAR(10),\"\")","v":""},null,{"$f":"IFERROR(INDEX(Activitate,SMALL(IF(Țintă=$D$2,ROW(Activitate)-MIN(ROW(Activitate))+1),ROWS($B$3:B80)))&CHAR(10),\"\")","v":""},null,{"$f":"IFERROR(INDEX(Activitate,SMALL(IF(Țintă=$F$2,ROW(Activitate)-MIN(ROW(Activitate))+1),ROWS($B$3:B80)))&CHAR(10),\"\")","v":""},null,{"$f":"IFERROR(INDEX(Activitate,SMALL(IF(Țintă=$H$2,ROW(Activitate)-MIN(ROW(Activitate))+1),ROWS($B$3:B80)))&CHAR(10),\"\")","v":""}]
[null,{"$f":"IFERROR(INDEX(Activitate,SMALL(IF(Țintă=$B$2,ROW(Activitate)-MIN(ROW(Activitate))+1),ROWS($B$3:B81)))&\" \"&CHAR(10)&(INDEX(Rezultat,SMALL(IF(Țintă=$B$2,ROW(Rezultat)-MIN(ROW(Rezultat))+1),ROWS($B$3:B81))))&CHAR(10),\"\")","v":""},null,{"$f":"IFERROR(INDEX(Activitate,SMALL(IF(Țintă=$D$2,ROW(Activitate)-MIN(ROW(Activitate))+1),ROWS($B$3:B81)))&CHAR(10),\"\")","v":""},null,{"$f":"IFERROR(INDEX(Activitate,SMALL(IF(Țintă=$F$2,ROW(Activitate)-MIN(ROW(Activitate))+1),ROWS($B$3:B81)))&CHAR(10),\"\")","v":""},null,{"$f":"IFERROR(INDEX(Activitate,SMALL(IF(Țintă=$H$2,ROW(Activitate)-MIN(ROW(Activitate))+1),ROWS($B$3:B81)))&CHAR(10),\"\")","v":""}]
[null,{"$f":"IFERROR(INDEX(Activitate,SMALL(IF(Țintă=$B$2,ROW(Activitate)-MIN(ROW(Activitate))+1),ROWS($B$3:B82)))&\" \"&CHAR(10)&(INDEX(Rezultat,SMALL(IF(Țintă=$B$2,ROW(Rezultat)-MIN(ROW(Rezultat))+1),ROWS($B$3:B82))))&CHAR(10),\"\")","v":""},null,{"$f":"IFERROR(INDEX(Activitate,SMALL(IF(Țintă=$D$2,ROW(Activitate)-MIN(ROW(Activitate))+1),ROWS($B$3:B82)))&CHAR(10),\"\")","v":""},null,{"$f":"IFERROR(INDEX(Activitate,SMALL(IF(Țintă=$F$2,ROW(Activitate)-MIN(ROW(Activitate))+1),ROWS($B$3:B82)))&CHAR(10),\"\")","v":""},null,{"$f":"IFERROR(INDEX(Activitate,SMALL(IF(Țintă=$H$2,ROW(Activitate)-MIN(ROW(Activitate))+1),ROWS($B$3:B82)))&CHAR(10),\"\")","v":""}]
[null,{"$f":"IFERROR(INDEX(Activitate,SMALL(IF(Țintă=$B$2,ROW(Activitate)-MIN(ROW(Activitate))+1),ROWS($B$3:B83)))&\" \"&CHAR(10)&(INDEX(Rezultat,SMALL(IF(Țintă=$B$2,ROW(Rezultat)-MIN(ROW(Rezultat))+1),ROWS($B$3:B83))))&CHAR(10),\"\")","v":""},null,{"$f":"IFERROR(INDEX(Activitate,SMALL(IF(Țintă=$D$2,ROW(Activitate)-MIN(ROW(Activitate))+1),ROWS($B$3:B83)))&CHAR(10),\"\")","v":""},null,{"$f":"IFERROR(INDEX(Activitate,SMALL(IF(Țintă=$F$2,ROW(Activitate)-MIN(ROW(Activitate))+1),ROWS($B$3:B83)))&CHAR(10),\"\")","v":""},null,{"$f":"IFERROR(INDEX(Activitate,SMALL(IF(Țintă=$H$2,ROW(Activitate)-MIN(ROW(Activitate))+1),ROWS($B$3:B83)))&CHAR(10),\"\")","v":""}]
[null,{"$f":"IFERROR(INDEX(Activitate,SMALL(IF(Țintă=$B$2,ROW(Activitate)-MIN(ROW(Activitate))+1),ROWS($B$3:B84)))&\" \"&CHAR(10)&(INDEX(Rezultat,SMALL(IF(Țintă=$B$2,ROW(Rezultat)-MIN(ROW(Rezultat))+1),ROWS($B$3:B84))))&CHAR(10),\"\")","v":""},null,{"$f":"IFERROR(INDEX(Activitate,SMALL(IF(Țintă=$D$2,ROW(Activitate)-MIN(ROW(Activitate))+1),ROWS($B$3:B84)))&CHAR(10),\"\")","v":""},null,{"$f":"IFERROR(INDEX(Activitate,SMALL(IF(Țintă=$F$2,ROW(Activitate)-MIN(ROW(Activitate))+1),ROWS($B$3:B84)))&CHAR(10),\"\")","v":""},null,{"$f":"IFERROR(INDEX(Activitate,SMALL(IF(Țintă=$H$2,ROW(Activitate)-MIN(ROW(Activitate))+1),ROWS($B$3:B84)))&CHAR(10),\"\")","v":""}]
[null,{"$f":"IFERROR(INDEX(Activitate,SMALL(IF(Țintă=$B$2,ROW(Activitate)-MIN(ROW(Activitate))+1),ROWS($B$3:B85)))&\" \"&CHAR(10)&(INDEX(Rezultat,SMALL(IF(Țintă=$B$2,ROW(Rezultat)-MIN(ROW(Rezultat))+1),ROWS($B$3:B85))))&CHAR(10),\"\")","v":""},null,{"$f":"IFERROR(INDEX(Activitate,SMALL(IF(Țintă=$D$2,ROW(Activitate)-MIN(ROW(Activitate))+1),ROWS($B$3:B85)))&CHAR(10),\"\")","v":""},null,{"$f":"IFERROR(INDEX(Activitate,SMALL(IF(Țintă=$F$2,ROW(Activitate)-MIN(ROW(Activitate))+1),ROWS($B$3:B85)))&CHAR(10),\"\")","v":""},null,{"$f":"IFERROR(INDEX(Activitate,SMALL(IF(Țintă=$H$2,ROW(Activitate)-MIN(ROW(Activitate))+1),ROWS($B$3:B85)))&CHAR(10),\"\")","v":""}]
[null,{"$f":"IFERROR(INDEX(Activitate,SMALL(IF(Țintă=$B$2,ROW(Activitate)-MIN(ROW(Activitate))+1),ROWS($B$3:B86)))&\" \"&CHAR(10)&(INDEX(Rezultat,SMALL(IF(Țintă=$B$2,ROW(Rezultat)-MIN(ROW(Rezultat))+1),ROWS($B$3:B86))))&CHAR(10),\"\")","v":""},null,{"$f":"IFERROR(INDEX(Activitate,SMALL(IF(Țintă=$D$2,ROW(Activitate)-MIN(ROW(Activitate))+1),ROWS($B$3:B86)))&CHAR(10),\"\")","v":""},null,{"$f":"IFERROR(INDEX(Activitate,SMALL(IF(Țintă=$F$2,ROW(Activitate)-MIN(ROW(Activitate))+1),ROWS($B$3:B86)))&CHAR(10),\"\")","v":""},null,{"$f":"IFERROR(INDEX(Activitate,SMALL(IF(Țintă=$H$2,ROW(Activitate)-MIN(ROW(Activitate))+1),ROWS($B$3:B86)))&CHAR(10),\"\")","v":""}]
[null,{"$f":"IFERROR(INDEX(Activitate,SMALL(IF(Țintă=$B$2,ROW(Activitate)-MIN(ROW(Activitate))+1),ROWS($B$3:B87)))&\" \"&CHAR(10)&(INDEX(Rezultat,SMALL(IF(Țintă=$B$2,ROW(Rezultat)-MIN(ROW(Rezultat))+1),ROWS($B$3:B87))))&CHAR(10),\"\")","v":""},null,{"$f":"IFERROR(INDEX(Activitate,SMALL(IF(Țintă=$D$2,ROW(Activitate)-MIN(ROW(Activitate))+1),ROWS($B$3:B87)))&CHAR(10),\"\")","v":""},null,{"$f":"IFERROR(INDEX(Activitate,SMALL(IF(Țintă=$F$2,ROW(Activitate)-MIN(ROW(Activitate))+1),ROWS($B$3:B87)))&CHAR(10),\"\")","v":""},null,{"$f":"IFERROR(INDEX(Activitate,SMALL(IF(Țintă=$H$2,ROW(Activitate)-MIN(ROW(Activitate))+1),ROWS($B$3:B87)))&CHAR(10),\"\")","v":""}]
[null,{"$f":"IFERROR(INDEX(Activitate,SMALL(IF(Țintă=$B$2,ROW(Activitate)-MIN(ROW(Activitate))+1),ROWS($B$3:B88)))&\" \"&CHAR(10)&(INDEX(Rezultat,SMALL(IF(Țintă=$B$2,ROW(Rezultat)-MIN(ROW(Rezultat))+1),ROWS($B$3:B88))))&CHAR(10),\"\")","v":""},null,{"$f":"IFERROR(INDEX(Activitate,SMALL(IF(Țintă=$D$2,ROW(Activitate)-MIN(ROW(Activitate))+1),ROWS($B$3:B88)))&CHAR(10),\"\")","v":""},null,{"$f":"IFERROR(INDEX(Activitate,SMALL(IF(Țintă=$F$2,ROW(Activitate)-MIN(ROW(Activitate))+1),ROWS($B$3:B88)))&CHAR(10),\"\")","v":""},null,{"$f":"IFERROR(INDEX(Activitate,SMALL(IF(Țintă=$H$2,ROW(Activitate)-MIN(ROW(Activitate))+1),ROWS($B$3:B88)))&CHAR(10),\"\")","v":""}]
[null,{"$f":"IFERROR(INDEX(Activitate,SMALL(IF(Țintă=$B$2,ROW(Activitate)-MIN(ROW(Activitate))+1),ROWS($B$3:B89)))&\" \"&CHAR(10)&(INDEX(Rezultat,SMALL(IF(Țintă=$B$2,ROW(Rezultat)-MIN(ROW(Rezultat))+1),ROWS($B$3:B89))))&CHAR(10),\"\")","v":""},null,{"$f":"IFERROR(INDEX(Activitate,SMALL(IF(Țintă=$D$2,ROW(Activitate)-MIN(ROW(Activitate))+1),ROWS($B$3:B89)))&CHAR(10),\"\")","v":""},null,{"$f":"IFERROR(INDEX(Activitate,SMALL(IF(Țintă=$F$2,ROW(Activitate)-MIN(ROW(Activitate))+1),ROWS($B$3:B89)))&CHAR(10),\"\")","v":""},null,{"$f":"IFERROR(INDEX(Activitate,SMALL(IF(Țintă=$H$2,ROW(Activitate)-MIN(ROW(Activitate))+1),ROWS($B$3:B89)))&CHAR(10),\"\")","v":""}]
[null,{"$f":"IFERROR(INDEX(Activitate,SMALL(IF(Țintă=$B$2,ROW(Activitate)-MIN(ROW(Activitate))+1),ROWS($B$3:B90)))&\" \"&CHAR(10)&(INDEX(Rezultat,SMALL(IF(Țintă=$B$2,ROW(Rezultat)-MIN(ROW(Rezultat))+1),ROWS($B$3:B90))))&CHAR(10),\"\")","v":""},null,{"$f":"IFERROR(INDEX(Activitate,SMALL(IF(Țintă=$D$2,ROW(Activitate)-MIN(ROW(Activitate))+1),ROWS($B$3:B90)))&CHAR(10),\"\")","v":""},null,{"$f":"IFERROR(INDEX(Activitate,SMALL(IF(Țintă=$F$2,ROW(Activitate)-MIN(ROW(Activitate))+1),ROWS($B$3:B90)))&CHAR(10),\"\")","v":""},null,{"$f":"IFERROR(INDEX(Activitate,SMALL(IF(Țintă=$H$2,ROW(Activitate)-MIN(ROW(Activitate))+1),ROWS($B$3:B90)))&CHAR(10),\"\")","v":""}]
[null,{"$f":"IFERROR(INDEX(Activitate,SMALL(IF(Țintă=$B$2,ROW(Activitate)-MIN(ROW(Activitate))+1),ROWS($B$3:B91)))&\" \"&CHAR(10)&(INDEX(Rezultat,SMALL(IF(Țintă=$B$2,ROW(Rezultat)-MIN(ROW(Rezultat))+1),ROWS($B$3:B91))))&CHAR(10),\"\")","v":""},null,{"$f":"IFERROR(INDEX(Activitate,SMALL(IF(Țintă=$D$2,ROW(Activitate)-MIN(ROW(Activitate))+1),ROWS($B$3:B91)))&CHAR(10),\"\")","v":""},null,{"$f":"IFERROR(INDEX(Activitate,SMALL(IF(Țintă=$F$2,ROW(Activitate)-MIN(ROW(Activitate))+1),ROWS($B$3:B91)))&CHAR(10),\"\")","v":""},null,{"$f":"IFERROR(INDEX(Activitate,SMALL(IF(Țintă=$H$2,ROW(Activitate)-MIN(ROW(Activitate))+1),ROWS($B$3:B91)))&CHAR(10),\"\")","v":""}]
[null,{"$f":"IFERROR(INDEX(Activitate,SMALL(IF(Țintă=$B$2,ROW(Activitate)-MIN(ROW(Activitate))+1),ROWS($B$3:B92)))&\" \"&CHAR(10)&(INDEX(Rezultat,SMALL(IF(Țintă=$B$2,ROW(Rezultat)-MIN(ROW(Rezultat))+1),ROWS($B$3:B92))))&CHAR(10),\"\")","v":""},null,{"$f":"IFERROR(INDEX(Activitate,SMALL(IF(Țintă=$D$2,ROW(Activitate)-MIN(ROW(Activitate))+1),ROWS($B$3:B92)))&CHAR(10),\"\")","v":""},null,{"$f":"IFERROR(INDEX(Activitate,SMALL(IF(Țintă=$F$2,ROW(Activitate)-MIN(ROW(Activitate))+1),ROWS($B$3:B92)))&CHAR(10),\"\")","v":""},null,{"$f":"IFERROR(INDEX(Activitate,SMALL(IF(Țintă=$H$2,ROW(Activitate)-MIN(ROW(Activitate))+1),ROWS($B$3:B92)))&CHAR(10),\"\")","v":""}]
[null,{"$f":"IFERROR(INDEX(Activitate,SMALL(IF(Țintă=$B$2,ROW(Activitate)-MIN(ROW(Activitate))+1),ROWS($B$3:B93)))&\" \"&CHAR(10)&(INDEX(Rezultat,SMALL(IF(Țintă=$B$2,ROW(Rezultat)-MIN(ROW(Rezultat))+1),ROWS($B$3:B93))))&CHAR(10),\"\")","v":""},null,{"$f":"IFERROR(INDEX(Activitate,SMALL(IF(Țintă=$D$2,ROW(Activitate)-MIN(ROW(Activitate))+1),ROWS($B$3:B93)))&CHAR(10),\"\")","v":""},null,{"$f":"IFERROR(INDEX(Activitate,SMALL(IF(Țintă=$F$2,ROW(Activitate)-MIN(ROW(Activitate))+1),ROWS($B$3:B93)))&CHAR(10),\"\")","v":""},null,{"$f":"IFERROR(INDEX(Activitate,SMALL(IF(Țintă=$H$2,ROW(Activitate)-MIN(ROW(Activitate))+1),ROWS($B$3:B93)))&CHAR(10),\"\")","v":""}]
[null,{"$f":"IFERROR(INDEX(Activitate,SMALL(IF(Țintă=$B$2,ROW(Activitate)-MIN(ROW(Activitate))+1),ROWS($B$3:B94)))&\" \"&CHAR(10)&(INDEX(Rezultat,SMALL(IF(Țintă=$B$2,ROW(Rezultat)-MIN(ROW(Rezultat))+1),ROWS($B$3:B94))))&CHAR(10),\"\")","v":""},null,{"$f":"IFERROR(INDEX(Activitate,SMALL(IF(Țintă=$D$2,ROW(Activitate)-MIN(ROW(Activitate))+1),ROWS($B$3:B94)))&CHAR(10),\"\")","v":""},null,{"$f":"IFERROR(INDEX(Activitate,SMALL(IF(Țintă=$F$2,ROW(Activitate)-MIN(ROW(Activitate))+1),ROWS($B$3:B94)))&CHAR(10),\"\")","v":""},null,{"$f":"IFERROR(INDEX(Activitate,SMALL(IF(Țintă=$H$2,ROW(Activitate)-MIN(ROW(Activitate))+1),ROWS($B$3:B94)))&CHAR(10),\"\")","v":""}]
[null,{"$f":"IFERROR(INDEX(Activitate,SMALL(IF(Țintă=$B$2,ROW(Activitate)-MIN(ROW(Activitate))+1),ROWS($B$3:B95)))&\" \"&CHAR(10)&(INDEX(Rezultat,SMALL(IF(Țintă=$B$2,ROW(Rezultat)-MIN(ROW(Rezultat))+1),ROWS($B$3:B95))))&CHAR(10),\"\")","v":""},null,{"$f":"IFERROR(INDEX(Activitate,SMALL(IF(Țintă=$D$2,ROW(Activitate)-MIN(ROW(Activitate))+1),ROWS($B$3:B95)))&CHAR(10),\"\")","v":""},null,{"$f":"IFERROR(INDEX(Activitate,SMALL(IF(Țintă=$F$2,ROW(Activitate)-MIN(ROW(Activitate))+1),ROWS($B$3:B95)))&CHAR(10),\"\")","v":""},null,{"$f":"IFERROR(INDEX(Activitate,SMALL(IF(Țintă=$H$2,ROW(Activitate)-MIN(ROW(Activitate))+1),ROWS($B$3:B95)))&CHAR(10),\"\")","v":""}]
[null,{"$f":"IFERROR(INDEX(Activitate,SMALL(IF(Țintă=$B$2,ROW(Activitate)-MIN(ROW(Activitate))+1),ROWS($B$3:B96)))&\" \"&CHAR(10)&(INDEX(Rezultat,SMALL(IF(Țintă=$B$2,ROW(Rezultat)-MIN(ROW(Rezultat))+1),ROWS($B$3:B96))))&CHAR(10),\"\")","v":""},null,{"$f":"IFERROR(INDEX(Activitate,SMALL(IF(Țintă=$D$2,ROW(Activitate)-MIN(ROW(Activitate))+1),ROWS($B$3:B96)))&CHAR(10),\"\")","v":""},null,{"$f":"IFERROR(INDEX(Activitate,SMALL(IF(Țintă=$F$2,ROW(Activitate)-MIN(ROW(Activitate))+1),ROWS($B$3:B96)))&CHAR(10),\"\")","v":""},null,{"$f":"IFERROR(INDEX(Activitate,SMALL(IF(Țintă=$H$2,ROW(Activitate)-MIN(ROW(Activitate))+1),ROWS($B$3:B96)))&CHAR(10),\"\")","v":""}]
[null,{"$f":"IFERROR(INDEX(Activitate,SMALL(IF(Țintă=$B$2,ROW(Activitate)-MIN(ROW(Activitate))+1),ROWS($B$3:B97)))&\" \"&CHAR(10)&(INDEX(Rezultat,SMALL(IF(Țintă=$B$2,ROW(Rezultat)-MIN(ROW(Rezultat))+1),ROWS($B$3:B97))))&CHAR(10),\"\")","v":""},null,{"$f":"IFERROR(INDEX(Activitate,SMALL(IF(Țintă=$D$2,ROW(Activitate)-MIN(ROW(Activitate))+1),ROWS($B$3:B97)))&CHAR(10),\"\")","v":""},null,{"$f":"IFERROR(INDEX(Activitate,SMALL(IF(Țintă=$F$2,ROW(Activitate)-MIN(ROW(Activitate))+1),ROWS($B$3:B97)))&CHAR(10),\"\")","v":""},null,{"$f":"IFERROR(INDEX(Activitate,SMALL(IF(Țintă=$H$2,ROW(Activitate)-MIN(ROW(Activitate))+1),ROWS($B$3:B97)))&CHAR(10),\"\")","v":""}]
[null,{"$f":"IFERROR(INDEX(Activitate,SMALL(IF(Țintă=$B$2,ROW(Activitate)-MIN(ROW(Activitate))+1),ROWS($B$3:B98)))&\" \"&CHAR(10)&(INDEX(Rezultat,SMALL(IF(Țintă=$B$2,ROW(Rezultat)-MIN(ROW(Rezultat))+1),ROWS($B$3:B98))))&CHAR(10),\"\")","v":""},null,{"$f":"IFERROR(INDEX(Activitate,SMALL(IF(Țintă=$D$2,ROW(Activitate)-MIN(ROW(Activitate))+1),ROWS($B$3:B98)))&CHAR(10),\"\")","v":""},null,{"$f":"IFERROR(INDEX(Activitate,SMALL(IF(Țintă=$F$2,ROW(Activitate)-MIN(ROW(Activitate))+1),ROWS($B$3:B98)))&CHAR(10),\"\")","v":""},null,{"$f":"IFERROR(INDEX(Activitate,SMALL(IF(Țintă=$H$2,ROW(Activitate)-MIN(ROW(Activitate))+1),ROWS($B$3:B98)))&CHAR(10),\"\")","v":""}]
[null,{"$f":"IFERROR(INDEX(Activitate,SMALL(IF(Țintă=$B$2,ROW(Activitate)-MIN(ROW(Activitate))+1),ROWS($B$3:B99)))&\" \"&CHAR(10)&(INDEX(Rezultat,SMALL(IF(Țintă=$B$2,ROW(Rezultat)-MIN(ROW(Rezultat))+1),ROWS($B$3:B99))))&CHAR(10),\"\")","v":""},null,{"$f":"IFERROR(INDEX(Activitate,SMALL(IF(Țintă=$D$2,ROW(Activitate)-MIN(ROW(Activitate))+1),ROWS($B$3:B99)))&CHAR(10),\"\")","v":""},null,{"$f":"IFERROR(INDEX(Activitate,SMALL(IF(Țintă=$F$2,ROW(Activitate)-MIN(ROW(Activitate))+1),ROWS($B$3:B99)))&CHAR(10),\"\")","v":""},null,{"$f":"IFERROR(INDEX(Activitate,SMALL(IF(Țintă=$H$2,ROW(Activitate)-MIN(ROW(Activitate))+1),ROWS($B$3:B99)))&CHAR(10),\"\")","v":""}]
[null,{"$f":"IFERROR(INDEX(Activitate,SMALL(IF(Țintă=$B$2,ROW(Activitate)-MIN(ROW(Activitate))+1),ROWS($B$3:B100)))&\" \"&CHAR(10)&(INDEX(Rezultat,SMALL(IF(Țintă=$B$2,ROW(Rezultat)-MIN(ROW(Rezultat))+1),ROWS($B$3:B100))))&CHAR(10),\"\")","v":""},null,{"$f":"IFERROR(INDEX(Activitate,SMALL(IF(Țintă=$D$2,ROW(Activitate)-MIN(ROW(Activitate))+1),ROWS($B$3:B100)))&CHAR(10),\"\")","v":""},null,{"$f":"IFERROR(INDEX(Activitate,SMALL(IF(Țintă=$F$2,ROW(Activitate)-MIN(ROW(Activitate))+1),ROWS($B$3:B100)))&CHAR(10),\"\")","v":""},null,{"$f":"IFERROR(INDEX(Activitate,SMALL(IF(Țintă=$H$2,ROW(Activitate)-MIN(ROW(Activitate))+1),ROWS($B$3:B100)))&CHAR(10),\"\")","v":""}]

{"sheet":"Despre","index":2,"n_rows":6,"n_cols":1,"rows_kept":6}
["Despre acest registru de lucru"]
["Ghid pentru cititoarele de ecran"]
["Există 3 foi de lucru în acest registru de lucru. \n\nDate foaie de parcurs\nFoaie de parcurs Agile\nDespre\n\nInstrucțiunile pentru fiecare foaie de lucru se află în coloana A, începând cu celula A1 a fiecărei foi de lucru. Acestea sunt scrise cu text ascuns. Fiecare pas vă îndrumă atunci când parcurgeți informațiile din acel rând. Fiecare pas continuă cu celula A2, A3 și așa mai departe, dacă nu există alte instrucțiuni explicite. De exemplu, textul instrucțiunii ar putea specifica să „continuați cu celula A6” pentru pasul următor. \n\nTextul ascuns nu se va imprima.\n\nPentru a elimina aceste instrucțiuni din orice foaie de lucru, pur și simplu ștergeți coloana A.\n"]
["Despre acest Registru de lucru"]
["Introduceți informațiile despre jalon în foaia de lucru Date foaie de parcurs.  Aveți grijă să sortați după prioritate, apoi după jalon pentru a captura vizualizarea Finalizat, Curent, Termen scurt și Viitor în ordinea priorității sub formă descrescătoare--cu elementele cu cea mai mare prioritate listate în partea de sus. Foaia de parcurs din foaia de lucru Foaie de parcurs Agile se actualizează automat.\n"]
["Aceasta este ultima instrucțiune din această foaie de lucru."]